Cogmind - Beta 10.1 @@@ ROGUE MODE // 2020.09.22 @ 01:11:00 Player: Finestep Result: Destroyed by MAIN.C with Improved Heavy Machine Gun Performance ------------- Evolutions (9) 4500 Regions Visited (31) 6200 Robots Destroyed (561) 2805 Value Destroyed (28385) 28385 Prototype IDs (254) 5080 Alien Tech Used (2) 400 Bonus (34785) 34785 TOTAL SCORE: 82155 Bonus ------- High Alert Combat Kills 4466 Follower Combat Kills 6098 Entered Garrisons 800 Used RIF Installer 2000 Network Hubs Disabled 200 Aligned with FarCom 300 Met Data Miner 300 Used Data Conduit 3000 Built Enhanced Grunts 300 A7 Reached Mainframe 300 Found Hidden Lab 3000 Decrypted A0 Command 3000 Pursued by Intercept 2500 Destroyed MAIN.C Guards 500 Met MAIN.C 5000 Destroyed MAIN.C Shell 5000 Friendly Fire -1979 Cogmind --------- Core Integrity 0/1600 Matter 99/300 Energy 100/100 System Corruption 40% Temperature Cool (381) Movement Core (1100) Ox21 Location -1/Command Parts ------- > --- POWER (2) -------- (None) > --- PROPULSION (4) --- (None) > --- UTILITY (17) ----- High-capacity Storage Unit High-capacity Storage Unit Experimental Targeting Computer > --- WEAPON (3) ------- (None) > --- INVENTORY (20) --- Quantum Reactor Zero-point Reactor Advanced Heat Sink Advanced Heat Sink Experimental Coolant Injector Experimental Energy Well (452) Experimental Matter Compressor (0) Experimental Matter Compressor (0) Improved Transmission Jammer Thermal Barrier Advanced Force Field Point Defense System Improved System Shield Trap Reconfigurator Transdimensional Reconstructor HERF Cannon Guided Remote Datajack Peak State ------------ > --- POWER ------------ Reinforced Quantum Reactor Zero-point Reactor > --- PROPULSION ------- Advanced Heavy Treads Advanced Heavy Treads > --- UTILITY ---------- Experimental Power Amplifier Experimental Cooling System Medium Storage Unit High-capacity Storage Unit High-capacity Storage Unit High-capacity Storage Unit Improved Energy Well Experimental Targeting Computer Experimental Targeting Computer Advanced Target Analyzer Advanced Weapon Cycler Advanced Phase Shifter Experimental Power Shielding Heavy Regenerative Plating Thermal Barrier AEGIS Remote Shield > --- WEAPON ----------- Potential Cannon Multirail > --- INVENTORY -------- Quantum Reactor Zero-point Reactor Zero-point Reactor Improved Heavy Treads Advanced Heat Sink Experimental Coolant Injector Experimental Energy Well Experimental Energy Well Experimental Energy Well Experimental Matter Compressor Experimental Matter Compressor Improved Transmission Jammer Advanced Force Field Point Defense System Improved System Shield Trap Reconfigurator Transdimensional Reconstructor HERF Cannon Compact HERF Cannon Enhanced Nova Cannon Cooled Nova Cannon Linked Autogun Linked Autogun Multirail Ragnarok Missile Launcher Guided Remote Datajack [Rating: 215] Favorites ----------- Power Heavy Deuterium Engine Engine Heavy Deuterium Engine Power Core Micro Nuclear Core Reactor Particle Reactor Propulsion Light Treads Treads Light Treads Leg Enhanced Flexi-carbon Leg Wheel Armored Wheel Utility High-capacity Storage Unit Device Tactical Coordination Suite Storage High-capacity Storage Unit Processor Advanced Terrain Scan Processor Hackware Relay Coupler [Sentry] Protection Layered Medium Armor Plating Weapon Gauss Rifle Energy Gun Precision Shock Rifle Energy Cannon Neutron Cannon Ballistic Gun Gauss Rifle Ballistic Cannon Bore Cannon Launcher Grenade Launcher Special Weapon Remote Datajack Slashing Weapon Makeshift Sword Special Melee Weapon Datajack Build | -11 -10 -10 -9 -9 -9 -8 -8 -8 -7 -7 -7 -7 -6 -6 -6 -6 -5 -5 -5 -5 -5 -5 -4 -4 -4 -3 -2 -1 -1 -1 -1 ------- Run | Scr Mat Min Mat Min Exi Min Mat Gar Fac Gar Fac Gar Fac Low Low Dat Pro Fac Ext Cet Arc Hub Fac Arm Lab Res Res Acc Gar Acc Com Slots Evolved 18 | . . . 2 . . . 2 . 2 . . . 2 . . . . 2 . . . . 2 . . 2 2 2 . . . Power 1 | . . . . . . . . . . . . . . . . . . 1 . . . . . . . . . . . . . Propulsion 2 | . . . . . . . 1 . . . . . . . . . . . . . . . . . . 1 . . . . . Utility 14 | . . . 2 . . . 1 . 2 . . . 2 . . . . 1 . . . . 1 . . 1 2 2 . . . Weapon 1 | . . . . . . . . . . . . . . . . . . . . . . . 1 . . . . . . . . Parts Attached 805 | 6 10 5 43 6 2 5 28 24 34 40 2 27 48 12 22 19 6 19 65 9 8 17 53 45 10 32 30 33 51 44 50 Power 46 | 1 1 1 6 1 . . 2 1 1 1 . . . . 1 2 . 2 3 . 1 . 6 4 . 4 2 1 1 2 2 Engine 14 | 1 1 1 6 1 . . . . 1 1 . . . . . . . . 2 . . . . . . . . . . . . Core 7 | . . . . . . . 2 1 . . . . . . 1 1 . . 1 . . . . 1 . . . . . . . Reactor 25 | . . . . . . . . . . . . . . . . 1 . 2 . . 1 . 6 3 . 4 2 1 1 2 2 Propulsion 68 | 2 1 . 8 . . 2 9 4 3 3 . 1 3 . 2 4 . . 5 1 . 3 5 3 . 2 1 . 2 1 3 Treads 43 | 2 1 . 8 . . 2 7 2 2 . . 1 2 . 2 . . . . . . . 2 3 . 2 1 . 2 1 3 Leg 16 | . . . . . . . . . . . . . . . . 4 . . 5 1 . 3 3 . . . . . . . . Wheel 9 | . . . . . . . 2 2 1 3 . . 1 . . . . . . . . . . . . . . . . . . Hover . | . . . . . . . . . . . . . . . . . . . . . . . . . . . . . . . . Flight . | . . . . . . . . . . . . . . . . . . . . . . . . . . . . . . . . Utility 294 | 2 4 . 7 1 2 . 5 5 18 15 . 14 16 2 7 5 1 7 20 6 4 5 20 24 1 15 15 17 20 20 16 Device 113 | . . . . . 1 . . . 4 . . 3 5 1 . 2 . 2 8 4 3 3 5 11 . 9 10 13 11 10 8 Storage 31 | 2 4 . 3 1 1 . 1 . 1 5 . . 2 . . 1 . . 1 . . . 1 2 . . 2 . 1 1 2 Processor 11 | . . . . . . . . . . . . . . . . . . 1 1 . . . 2 1 . . . 2 1 3 . Hackware 49 | . . . . . . . . 2 5 4 . 3 4 . 2 . . 2 1 . . . 5 4 . 4 1 . 5 5 2 Protection 90 | . . . 4 . . . 4 3 8 6 . 8 5 1 5 2 1 2 9 2 1 2 7 6 1 2 2 2 2 1 4 Artifact . | . . . . . . . . . . . . . . . . . . . . . . . . . . . . . . . . Weapon 397 | 1 4 4 22 4 . 3 12 14 12 21 2 12 29 10 12 8 5 10 37 2 3 9 22 14 9 11 12 15 28 21 29 Energy Gun 24 | . 3 . 1 . . . 1 . 2 7 . 3 1 . . . . . 2 . . . . 1 1 2 . . . . . Energy Cannon 57 | . . . . . . . . . . . . . 2 1 1 . 1 . 12 1 1 3 5 2 1 1 . 7 7 3 9 Ballistic Gun 192 | 1 1 3 20 2 . 1 8 7 6 3 1 4 10 6 5 3 3 4 15 1 . 5 13 7 5 4 7 7 17 10 13 Ballistic Cannon 3 | . . . . . . . . . . . . . . . . . . . 3 . . . . . . . . . . . . Launcher 26 | . . 1 1 2 . 2 2 1 . 3 . 1 . 1 2 4 1 . 1 . . . . . . . . . . . 4 Special Weapon 62 | . . . . . . . . 2 3 7 . 3 12 1 3 . . 4 4 . 1 . 4 2 1 2 . . 4 6 3 Impact Weapon . | . . . . . . . . . . . . . . . . . . . . . . . . . . . . . . . . Slashing Weapon 32 | . . . . . . . 1 4 1 1 1 1 4 1 . 1 . 2 . . 1 1 . 2 1 2 5 1 . 2 . Piercing Weapon . | . . . . . . . . . . . . . . . . . . . . . . . . . . . . . . . . Special Melee Weapon 1 | . . . . . . . . . . . . . . . 1 . . . . . . . . . . . . . . . . Unidentified Prototypes 19 | . . . 3 . . . 3 . . . . . . . . . . . . 1 . . 1 . 4 1 . . 1 . 5 Parts Lost 134 | . 4 1 10 1 . 3 3 1 . . . 2 1 . 4 1 1 1 23 . . 3 23 6 . 1 1 5 4 3 32 Power 17 | . 1 . . 1 . . . . . . . . . . 1 . . 1 3 . . 1 4 2 . . . . . . 3 Propulsion 26 | . 1 . 5 . . 2 2 . . . . . 1 . 1 . . . 3 . . 1 3 2 . . . . 2 . 3 Utility 49 | . . . 2 . . . . 1 . . . . . . 2 . . . 7 . . 1 10 1 . 1 . 4 2 2 16 Weapon 42 | . 2 1 3 . . 1 1 . . . . 2 . . . 1 1 . 10 . . . 6 1 . . 1 1 . 1 10 Highest Loss Streak 28 | . 3 1 2 1 . 2 1 1 . . . 1 1 . 3 1 1 1 19 . . 2 13 2 . 1 1 1 2 2 28 Average Slot Usage (%) 95 | . 99 100 98 100 99 99 99 99 95 92 92 95 99 100 99 94 99 99 98 100 99 99 88 91 84 87 91 91 89 86 85 Engine 4 | . 13 14 11 11 11 11 1 . 5 7 7 7 6 6 2 . . . 2 5 5 5 . . . . . . . . . Core 1 | . . . . . . . 7 9 1 . . . . . 3 5 6 5 4 5 . . . . . . . . . . . Reactor 2 | . . . . . . . . . . . . . . . . . . 4 2 . 4 4 8 9 10 9 8 7 7 7 7 Treads 11 | . 27 28 21 22 22 21 24 25 7 7 7 6 6 6 13 13 . . . . . . 3 9 5 9 8 7 6 7 6 Leg 3 | . . . . . . . . . . . . . . . . 6 20 17 16 17 17 16 7 . . . . . . . . Wheel 3 | . . . . . . . 2 1 15 15 15 15 12 13 6 . . . . . . . . . . . . . . . . Device 6 | . . . . . . . . . 1 . . 3 4 4 2 3 . 3 9 14 21 17 9 8 8 6 15 23 20 15 16 Storage 28 | . 28 28 35 37 43 44 36 36 30 30 30 30 32 33 33 33 33 29 29 29 29 29 23 21 21 19 16 15 16 15 15 Processor 3 | . . . . . . . . . . . . . . . . . . 5 5 5 5 5 6 10 10 9 8 7 10 9 11 Hackware 6 | . . . . . . . . 1 8 6 7 2 15 13 9 8 6 7 2 . . . 6 12 15 13 15 11 10 16 13 Protection 6 | . . . 8 6 . . 9 7 8 7 7 11 6 8 12 13 19 9 8 7 1 4 5 2 1 4 3 5 3 3 4 Energy Gun 1 | . 8 5 . . . . . . 2 6 . 3 . . . . . . . . . . . . . . . . . . . Ballistic Gun 11 | . 19 22 21 21 22 17 17 15 11 4 10 8 9 11 12 5 12 8 4 3 . 6 7 6 6 12 11 9 7 7 4 Special Weapon 1 | . . . . . . . . 1 . 3 3 2 1 . . 1 . . . . 4 . 1 2 3 . . . . . . Naked Turns . | . . . . . . . . . . . . . . . . . . . . . . . . . . . . . . . . Heaviest Build 243 | 15 74 74 106 112 112 112 115 117 142 166 167 175 202 221 212 198 215 226 222 218 223 226 243 196 194 212 193 226 226 223 228 Greatest Support 160 | 40 40 40 40 40 40 40 60 60 24 24 24 24 24 24 75 84 84 84 84 63 53 76 108 108 70 150 150 150 160 140 145 Greatest Overweight (x) 17 | . 1 1 5 2 2 2 9 5 5 6 6 7 15 9 17 6 2 2 3 4 4 4 3 6 2 1 2 1 2 1 2 Average Overweight (x) 2 | . . 1 2 2 1 2 2 1 4 5 6 6 7 8 5 2 2 2 2 3 3 2 2 1 2 1 1 1 1 1 1 Largest Inventory Capacity 44 | 8 20 20 32 32 32 32 32 32 32 36 36 36 44 44 44 44 44 44 44 44 44 44 44 36 36 36 42 32 32 32 32 Average Capacity 34 | 7 16 20 26 28 31 32 32 32 32 32 36 36 42 44 44 44 44 44 44 44 44 44 39 36 36 36 31 32 32 32 31 Most Carried 44 | 2 19 20 28 32 32 32 32 32 32 36 36 36 44 44 44 44 44 44 44 44 44 44 44 36 36 36 35 32 32 32 32 Average Carried 33 | 1 13 18 25 28 31 31 31 31 31 31 36 34 41 43 43 42 43 43 37 43 43 43 36 35 35 35 30 30 31 29 28 Final Capacity 44 | 8 20 20 26 32 32 32 32 32 32 36 36 36 44 44 44 44 44 44 44 44 44 44 36 36 36 36 32 32 32 32 20 Final Carried 44 | 2 16 20 26 31 32 32 32 32 32 36 36 36 44 44 43 44 44 43 39 44 44 44 36 35 36 36 32 32 31 28 17 Class Distribution -------------------- 34% | Hauler-Mutant 28% | Bothacker-Mutant 8% | Scavenger-Mutant 5% | Scavenger-Gunner 4% | Commander-Mutant 3% | Hacker-Mutant Dominant Class ---------------- Hauler-Mutant | -10/Materials Hauler-Mutant | -10/Mines Hauler-Mutant | -9/Materials Hauler-Mutant | -9/Mines Hauler-Mutant | -9/Exiles Hauler-Mutant | -8/Mines Hauler-Mutant | -8/Materials Hauler-Mutant | -8/Garrison Hauler-Mutant | -7/Factory Bothacker-Mutant | -7/Garrison Bothacker-Mutant | -7/Factory Bothacker-Mutant | -7/Garrison Bothacker-Mutant | -6/Factory Bothacker-Mutant | -6/Lower Caves Bothacker-Mutant | -6/Lower Caves Bothacker-Mutant | -6/Data Miner Bothacker-Mutant | -5/Proximity Caves Bothacker-Mutant | -5/Factory Bothacker-Mutant | -5/Extension Hauler-Mutant | -5/Cetus Hauler-Mutant | -5/Archives Scavenger-Mutant | -5/Hub_04(d) Bothacker-Mutant | -4/Factory Hauler-Mutant | -4/Armory Hacker-Mutant | -4/Lab Hacker-Skirmisher | -3/Research Hacker-Skirmisher | -2/Research Hacker-Mutant | -1/Access Botlord-Mutant | -1/Garrison Scavenger-Gunner | -1/Access Scavenger-Gunner | -1/Command Resources | -11 -10 -10 -9 -9 -9 -8 -8 -8 -7 -7 -7 -7 -6 -6 -6 -6 -5 -5 -5 -5 -5 -5 -4 -4 -4 -3 -2 -1 -1 -1 -1 ----------- Run | Scr Mat Min Mat Min Exi Min Mat Gar Fac Gar Fac Gar Fac Low Low Dat Pro Fac Ext Cet Arc Hub Fac Arm Lab Res Res Acc Gar Acc Com Matter Collected 23402 | 318 571 164 1134 260 29 107 787 831 598 649 51 471 758 168 437 264 209 419 1079 322 175 492 1266 1128 276 1099 1455 1813 1251 2156 2665 Remotely 785 | . . . . . . . . . . . . . . . . . . . . . . . 390 130 . 265 . . . . . Salvage Created 29568 | 155 937 450 2171 443 . 192 684 1005 468 931 127 396 329 350 728 307 276 439 1287 261 407 1058 1388 639 205 2255 1658 3416 1708 1313 3585 Parts 1376 | 14 49 26 150 31 . 8 45 45 27 40 6 25 12 19 28 18 18 14 46 4 23 35 58 37 10 99 57 166 80 79 107 Haulers Intercepted 11 | . 2 . 6 . . . 2 . . . . . . . . . . . . . . . . . . . 1 . . . . Recyclers Shooed 26 | 2 4 1 4 . . 1 . . 1 . . . 5 . . . . . . . . . 1 . . 2 1 4 . . . Parts Field Recycled . | . . . . . . . . . . . . . . . . . . . . . . . . . . . . . . . . Retrieved Matter . | . . . . . . . . . . . . . . . . . . . . . . . . . . . . . . . . Parts Self-Destructed 41 | . . . . . . . . . . . . . . 16 15 . 10 . . . . . . . . . . . . . . Prevented 20 | . . . . . . . . . . . . . . 2 13 . 5 . . . . . . . . . . . . . . Kills | -11 -10 -10 -9 -9 -9 -8 -8 -8 -7 -7 -7 -7 -6 -6 -6 -6 -5 -5 -5 -5 -5 -5 -4 -4 -4 -3 -2 -1 -1 -1 -1 ------- Run | Scr Mat Min Mat Min Exi Min Mat Gar Fac Gar Fac Gar Fac Low Low Dat Pro Fac Ext Cet Arc Hub Fac Arm Lab Res Res Acc Gar Acc Com Combat Hostiles Destroyed 417 | . 11 14 41 13 . 5 19 23 8 14 2 10 3 3 11 3 9 3 17 2 1 16 17 12 3 26 11 38 25 20 37 Melee 4 | . . . . . . . . . . . 1 2 . . . . . 1 . . . . . . . . . . . . . Guns 306 | . 11 12 37 7 . . 17 23 8 6 1 3 3 . 2 . 5 2 6 . . 9 11 10 3 25 11 34 19 20 21 Cannons 31 | . . . . . . . . . . . . . . . 1 . 1 . 11 . 1 5 5 1 . . . 2 2 . 2 AOE 57 | . . 2 4 6 . 5 2 . . 6 . 4 . 3 8 . 3 . . . . . . . . . . 2 . . 12 Classes Destroyed 21 | 2 6 . 3 . . . . 1 1 . . . . 2 1 . . . 1 . . . . 1 . 1 . 2 . . . Worker 25 | . . . 4 2 . . . . . . . . 3 . . . . 1 . . . 1 . . . 4 2 1 . 2 5 Builder 19 | . 3 . 1 1 . . . . 1 . . . . . . . . . . . . . 1 . . 3 . 9 . . . Tunneler 7 | 5 . . 1 . . . . . . . . . . . . . . . . . . . . . . . . 1 . . . Hauler 11 | . 2 . 6 . . . 2 . . . . . . . . . . . . . . . . . . . 1 . . . . Recycler 32 | 1 3 1 4 2 . 1 1 . . . . . 1 . . . . 2 1 . . 1 1 . . 1 5 6 . . 1 Carrier 1 | . . . . . . . . . . . . . . . . . . . . . . . . . . . . 1 . . . Mechanic 2 | . . . . . . . . . . . . . . . 1 . . . . . . . . . . 1 . . . . . Operator 16 | . 2 . 2 . . . . . . . . . . . . . . . 2 . 9 . . . . . . . . 1 . Watcher 21 | . 1 . 5 . . . 2 . . . . . . . . . . 1 1 . . 2 1 2 . 1 2 2 . . 1 Swarmer 115 | . 3 8 14 7 . . 13 10 . 4 . 6 1 3 3 . 8 . 3 . . 2 . 5 . 2 . 10 10 3 . Saboteur 3 | . . . . . . . . . . . . . . . . . . . . . . . . . . 1 . . . 1 1 Grunt 141 | . 8 6 18 6 . 5 3 11 6 5 1 2 . . 4 . . 1 6 1 . 6 9 1 3 6 . 14 . . 19 Brawler 3 | . . . 1 . . . . . . . . . . . 1 . . . . . . . . . . 1 . . . . . Duelist 7 | . . . . . . . . 1 . 2 . . . . 1 . . . . . . . . . . 1 . . . . 2 Protector 1 | . . . . . . . . . . . . . . . . . . . . . . . . . . . . 1 . . . Sentry 47 | . . . 8 . . . 3 1 1 3 1 2 . 1 2 . . . 6 . 1 3 2 . . 5 3 1 3 . 1 Specialist 3 | . . . . . . . . . . . . . . . . . . . . . . . . 1 . . . . 2 . . Hunter 26 | . . . . . . . . . . . . . . 1 1 . 1 . . 1 . 1 4 3 . 3 . 2 4 4 1 Programmer 51 | . . . . . . . . . 2 . . . 2 . 1 . . 2 . . . 2 2 3 . 5 4 7 5 8 8 Behemoth 3 | . . . . . . . . . . . . . . . . . . . 2 . . . . . . . . . 1 . . M Guard 2 | . . . . . . . . . . . . . . . . . . . . . . . . . . . . . . . 2 Enhanced Grunt 4 | . . . . . . . . . . . . . . . . 3 . . . 1 . . . . . . . . . . . Tracker 8 | . . . . . . . . . . . . . . . . . . . . . . 1 . . . 1 2 2 . 2 . Combat Programmer 9 | . . . . . . . . . . . . . . . . . . . . . . 1 . . . 1 2 1 . 2 2 Samaritan 1 | . . . . . . . . . . . . . . 1 . . . . . . . . . . . . . . . . . Butcher 1 | . . . . . . . . . . . . . . . . . . . 1 . . . . . . . . . . . . Commander 1 | . . . . . . . . . . . . . . 1 . . . . . . . . . . . . . . . . . Best Kill Streak 16 | 2 3 3 7 6 . 3 6 6 3 4 2 4 2 3 6 3 4 2 5 2 2 8 7 4 3 9 7 16 9 8 15 Combat Bots Only 15 | . 2 3 4 4 . 3 6 6 3 4 2 4 1 3 6 3 4 2 3 2 1 6 7 4 3 5 4 9 9 7 15 Max Kills in Single Turn 6 | 1 2 2 4 4 . 1 2 3 1 2 1 2 1 3 3 2 2 2 2 1 1 1 2 3 1 2 3 3 2 2 6 Gunslinging 1 | . . 1 . . . . 1 . . . . . . . . . . . . . . . . 1 . 1 1 1 . 1 . Exploded 6 | . . 2 4 4 . 1 2 . . 2 . 2 . 1 3 . 2 . . . . . . . . . . 2 . . 6 Melee 1 | . . . . . . . . . . . 1 1 . . . . . 1 . . . . . . . . . . . . . Uniques/NPCs Destroyed 2 | . . . . . . . . . . . . . . . . . . . . . . . . . 1 . . . . . 1 A5 (-4/Lab) MAIN.C Shell (-1/Command) Combat | -11 -10 -10 -9 -9 -9 -8 -8 -8 -7 -7 -7 -7 -6 -6 -6 -6 -5 -5 -5 -5 -5 -5 -4 -4 -4 -3 -2 -1 -1 -1 -1 -------- Run | Scr Mat Min Mat Min Exi Min Mat Gar Fac Gar Fac Gar Fac Low Low Dat Pro Fac Ext Cet Arc Hub Fac Arm Lab Res Res Acc Gar Acc Com Damage Taken 41530 | . 660 423 1828 300 . 450 793 940 503 989 24 845 382 218 1103 367 472 737 4312 153 . 1706 4205 2186 324 2109 1209 2196 1420 2039 8637 Core 3766 | . 64 46 256 41 . 20 82 65 31 27 . 94 47 18 92 43 39 19 346 . . 176 335 186 26 61 52 68 70 182 1280 Absorbed by Shields 6072 | . . . . . . . . . . 158 . 36 . . . . . . 37 . . . . . . 338 805 1151 1076 630 1841 Reduced by Siege Mode 962 | . . . . . . . . . . . . . . . . . . . . . . . 82 . 74 322 61 169 35 164 55 Core Remaining (%) 68 | 100 . 56 . . . 20 . 73 . . . 78 . . . . 71 . . . . 45 . . 52 95 96 . . . . Volleys Fired 1853 | 37 86 31 207 33 . 19 75 98 41 75 5 44 57 14 48 5 21 33 86 16 3 69 87 48 10 68 81 116 78 101 161 Largest 3 | 1 2 2 2 2 . 2 2 2 2 2 2 2 2 2 2 2 2 2 2 2 2 2 3 3 3 3 3 3 3 3 2 Hottest 320 | 20 76 76 46 46 . 46 84 53 110 110 56 83 75 75 98 72 100 53 156 125 171 180 290 210 105 150 100 200 182 200 320 Shots Fired 3457 | 37 168 60 411 62 . 25 146 169 71 107 7 66 76 17 73 7 37 52 143 19 5 116 173 101 26 172 237 271 159 192 252 Gun 2860 | 37 168 59 410 58 . 14 144 150 60 66 4 46 45 6 49 . 31 44 65 4 . 78 120 81 25 161 237 231 108 163 196 Cannon 330 | . . . . . . . . . . . . . 8 5 4 . 3 . 69 15 5 38 39 18 . 3 . 40 36 4 43 Launcher 61 | . . 1 1 4 . 11 2 3 . 9 . 3 . 4 8 6 3 . . . . . . . . . . . . . 6 Special 206 | . . . . . . . . 16 11 32 3 17 23 2 12 1 . 8 9 . . . 14 2 1 8 . . 15 25 7 Kinetic 2710 | 37 101 36 410 58 . 14 139 150 58 24 4 31 45 6 49 . 31 44 80 4 . 78 120 74 25 157 237 231 108 163 196 Thermal 277 | . 67 23 . . . . 5 9 . 8 . . . . . . . . 34 2 2 26 31 18 . 3 . 30 . 3 16 Explosive 28 | . . 1 1 4 . 11 2 3 . . . . . . . . . . . . . . . . . . . . . . 6 Electromagnetic 253 | . . . . . . . . . 2 51 . 18 8 9 12 6 6 . 20 13 3 12 8 7 . 4 . 10 36 1 27 Robot Hit Streak 45 | 6 9 13 18 10 . 8 9 35 10 13 8 9 12 6 13 13 15 18 15 7 4 10 16 17 13 26 33 39 38 35 45 Robot Miss Streak 6 | 2 5 4 6 3 . 1 5 3 3 2 . 4 6 2 3 . 5 2 3 3 3 2 6 3 1 3 4 2 1 5 2 Penetration Max 2 | . . . . . . . . 1 1 1 . . . . . . . 1 2 1 . 1 2 2 1 2 1 2 1 1 1 Secondary Targets 49 | . 2 2 4 1 . . 3 1 . 1 . 2 . . . . . . 2 . . . 1 2 1 8 2 10 1 4 2 Max Gunslinging Chain 1 | . 1 1 1 1 . . 1 1 . 1 . 1 . . . . . . 1 . . . 1 1 1 1 1 1 1 1 1 Shots Hit Robots 2493 | 28 107 35 292 31 . 15 87 125 52 74 5 43 44 11 58 4 14 40 94 10 22 72 109 72 20 135 195 211 109 146 233 Core Hits 1146 | 7 36 22 133 23 . 20 32 43 17 29 2 18 13 11 27 4 12 14 44 6 12 28 49 28 5 70 52 105 40 71 173 Critical Hits 242 | . . 2 . 1 . . . 4 1 1 . 1 . 1 2 . 1 1 15 . 1 7 7 15 2 27 30 45 15 17 46 Critical Kills 80 | . . 1 . . . . . . . . . . . 1 . . 1 1 8 . . 1 4 7 1 11 8 18 6 7 5 Critical Parts Destroyed 130 | . . 1 . 1 . . . 4 1 1 . 1 . . 2 . . . 7 . 1 4 3 8 1 13 15 25 7 7 28 Melee Attacks 92 | . . . . . . . 1 17 2 4 2 3 4 1 . 1 . 8 . . 18 6 . 2 3 6 8 1 . 5 . Impact . | . . . . . . . . . . . . . . . . . . . . . . . . . . . . . . . . Slashing 92 | . . . . . . . 1 17 2 4 2 3 4 1 . 1 . 8 . . 18 6 . 2 3 6 8 1 . 5 . Piercing . | . . . . . . . . . . . . . . . . . . . . . . . . . . . . . . . . Sneak Attacks 24 | . . . . . . . . . . . 2 2 1 1 . 1 . 3 . . 12 1 . . . 1 . . . . . Combat Hostiles 6 | . . . . . . . . . . . 2 2 . . . . . 2 . . . . . . . . . . . . . Follow-up Attacks . | . . . . . . . . . . . . . . . . . . . . . . . . . . . . . . . . Damage Inflicted 71030 | 365 1439 524 2664 903 . 965 1459 2649 876 1835 221 1063 841 579 1777 465 451 1200 2811 495 2175 2785 3241 1701 556 4451 4619 8681 3246 4443 11550 Guns 50853 | 365 1439 457 2526 518 . 143 1379 1828 876 764 23 581 505 91 690 . 213 868 1292 87 . 1382 2424 1240 556 4339 4568 7128 2205 4443 7923 Cannons 8213 | . . . . . . . . . . . . . 231 101 110 . 75 . 1519 408 173 1263 817 358 . . . 1145 935 . 1078 Explosions 7361 | . . 66 138 385 . 805 80 178 . 660 . 258 . 276 977 307 163 . . . . 1 . 103 . . . 361 106 . 2497 Melee 4280 | . . . . . . . . 556 . 321 198 224 105 111 . 158 . 332 . . 2002 125 . . . 112 36 . . . . Ramming 146 | . . 1 . . . 17 . . . . . . . . . . . . . . . 14 . . . . 15 47 . . 52 Kinetic 49694 | 365 924 215 2526 518 . 143 1339 1828 834 322 23 374 505 91 690 . 213 868 1850 87 . 1382 2424 1138 556 4212 4568 7128 2205 4443 7923 Thermal 6912 | . 515 242 . . . . 40 87 . 264 . 54 . . 343 . . . 604 35 51 826 542 358 . . . 1155 106 . 1690 Explosive 3405 | . . 66 138 385 . 805 80 178 . . . . . . . . . . . . . . . 103 . . . . . . 1650 Electromagnetic 6593 | . . . . . . . . . 42 928 . 411 231 377 744 307 238 . 357 373 122 438 275 102 . 127 . 351 935 . 235 Impact . | . . . . . . . . . . . . . . . . . . . . . . . . . . . . . . . . Slashing 4280 | . . . . . . . . 556 . 321 198 224 105 111 . 158 . 332 . . 2002 125 . . . 112 36 . . . . Piercing . | . . . . . . . . . . . . . . . . . . . . . . . . . . . . . . . . Highest Corruption 40 | . 1 1 . . . . . . 1 1 1 1 . . 3 3 3 8 13 13 13 7 5 8 8 3 13 17 18 32 40 Average Corruption 8 | . 1 1 . . . . . . 1 1 1 1 . . 2 3 3 6 12 13 8 5 4 6 8 2 4 5 17 26 33 Corruption Purged 13 | . . . . . . . . . . . . . . . . . . . . . 13 . . . . . . . . . . Effects 918 | . 6 4 . . . . . . 6 11 1 6 . . 14 9 13 24 110 22 44 6 9 54 22 15 34 22 122 146 218 Message Errors 158 | . 1 1 . . . . . . 2 7 . 4 . . 5 1 4 4 21 5 11 . 2 11 6 6 3 1 29 15 19 Matter Fused 137 | . . . . . . . . . . . . . . . . 5 3 6 21 2 12 3 1 14 3 3 2 . 18 19 25 Heat Flow Errors 60 | . . . . . . . . . . . . . . . 2 2 1 1 10 . 3 1 . 5 3 1 1 4 5 12 9 Energy Discharges 76 | . . 1 . . . . . . . 2 1 1 . . 1 1 1 3 11 3 6 2 1 5 4 . 4 1 9 9 10 Parts Rejected 7 | . . . . . . . . . . . . . . . . . . . . 1 . . . 1 . . 1 1 1 2 . Data Loss (minor) 65 | . 2 2 . . . . . . 2 1 . 1 . . 5 . 1 4 9 2 3 . 2 2 3 3 3 2 6 5 7 Data Loss (major) 24 | . . . . . . . . . . . . . . . . . . 2 3 1 2 . . 4 1 . 1 . 5 1 4 Misfires 21 | . . . . . . . . . . . . . . . . . . . 5 3 1 . . 1 . . . 1 5 . 5 Alerts 12 | . . . . . . . . . . . . . . . . . . . 1 2 1 . . . . . 1 . 1 1 5 Misdirections 71 | . . . . . . . . . . . . . . . . . . . 9 1 2 . . . . . . 2 14 23 20 Targeting Errors 244 | . 3 . . . . . . . 2 1 . . . . 1 . 3 3 15 1 3 . 3 7 2 1 17 9 25 50 98 Weapon Failures 43 | . . . . . . . . . . . . . . . . . . 1 5 1 . . . 4 . 1 1 1 4 9 16 Overload Shots 2 | . . . . . . . . . . . . . . . . . . . . . . . . . . . . . . . 2 Overflow Damage 1567 | . . . . 7 . . . 74 . 58 . 18 77 1 6 98 2 . 61 . 599 195 . 34 . . . 129 33 . 175 Projectiles 342 | . . . . . . . . . . . . . 2 . . . . . 61 . . 125 . 34 . . . 81 33 . 6 Explosions 291 | . . . . 7 . . . . . 37 . 18 . 1 6 . 2 . . . . 15 . . . . . 48 . . 157 Melee 934 | . . . . . . . . 74 . 21 . . 75 . . 98 . . . . 599 55 . . . . . . . . 12 Knockbacks 2 | . . . . . . . . . . . . . . . . . . . 2 . . . . . . . . . . . . Impact . | . . . . . . . . . . . . . . . . . . . . . . . . . . . . . . . . Kinetic 2 | . . . . . . . . . . . . . . . . . . . 2 . . . . . . . . . . . . Secondary . | . . . . . . . . . . . . . . . . . . . . . . . . . . . . . . . . Self-Inflicted Damage 717 | . . . . . . . 30 . . 13 . . . 25 39 . 85 . . . . 98 . . . . . 34 . . 393 Shots 15 | . . . . . . . 1 . . 1 . . . 1 1 . 4 . . . . 1 . . . . . 1 . . 5 Rammed 7 | . . 1 . . . 3 . . . . . . . . . . . . . . . . . . . . 1 1 . . 1 Targets Rammed 8 | . . 1 . . . 3 . . . . . . . . . . . . . . . 1 . . . . 1 1 . . 1 Kicked 1 | . . . . . . . . . . . . . . . . . . . . . . 1 . . . . . . . . . Crushed . | . . . . . . . . . . . . . . . . . . . . . . . . . . . . . . . . Highest Temperature 507 | . 168 111 26 15 . 24 42 41 162 229 26 127 144 138 275 241 164 280 277 64 261 279 320 303 258 218 278 376 250 344 507 Average Temperature 62 | . 56 38 6 7 . 10 12 10 49 71 8 42 26 64 70 103 60 92 88 19 72 92 61 82 103 78 88 69 51 84 96 Received Heat Transfer 5711 | . 273 90 651 66 . 243 207 306 150 418 . 122 33 33 384 48 . 27 886 12 . 198 618 63 60 293 36 243 . 8 243 Effects 19 | . . . . . . . . . . . . . . . . 1 . 1 2 . . 1 . 1 . . 2 . . 4 7 Shutdowns 3 | . . . . . . . . . . . . . . . . . . . . . . . . . . . . . . . 3 Energy Bleed 4 | . . . . . . . . . . . . . . . . . . 1 1 . . . . . . . . . . 1 1 Interference 11 | . . . . . . . . . . . . . . . . 1 . . 1 . . 1 . . . . 2 . . 3 3 Matter Decay 1 | . . . . . . . . . . . . . . . . . . . . . . . . 1 . . . . . . . Siege Activations 26 | . . . . . . . . . . . . . . . . . . . . . . . 1 . 1 5 4 7 4 2 2 Total Turns 647 | . . . . . . . . . . . . . . . . . . . . . . . 19 . 17 126 142 144 68 52 79 Longest Duration 75 | . . . . . . . . . . . . . . . . . . . . . . . 19 . 17 42 75 46 23 46 47 Robots Corrupted 18 | . . . . . . . . . . 2 . 1 . . . 3 . . . 2 . 2 1 . . 1 . . 4 . 2 Combat Hostiles 18 | . . . . . . . . . . 2 . 1 . . . 3 . . . 2 . 2 1 . . 1 . . 4 . 2 Parts Fried 49 | . . . . . . . . . . 9 . 1 . 2 1 3 2 . . 5 . 4 1 1 . 3 . 1 12 . 4 Impact Corruptions 1 | . . . . . . . . . . . . . . . . . . . . . . . . . . . . . . . 1 Robots Melted 1 | . . . . . . . . . . . . . . . . . . . . . . . . 1 . . . . . . . Combat Hostiles 1 | . . . . . . . . . . . . . . . . . . . . . . . . 1 . . . . . . . Parts Melted 13 | . . 1 . . . . . . 1 . . . . . 1 . . . . . . 1 3 . . . . 1 1 4 . Heat Transferred 7186 | . 1262 592 . . . . 74 296 . 446 . . . . 400 . . . 550 25 25 350 325 333 . . . 1165 25 . 1318 Parts Sabotaged . | . . . . . . . . . . . . . . . . . . . . . . . . . . . . . . . . Parts Stolen . | . . . . . . . . . . . . . . . . . . . . . . . . . . . . . . . . Parts Stripped . | . . . . . . . . . . . . . . . . . . . . . . . . . . . . . . . . Power Chain Reactions 13 | . . . . . . . . . . 2 . 3 . . 4 1 2 . . . . . . . . . . . 1 . . Missiles Intercepted . | . . . . . . . . . . . . . . . . . . . . . . . . . . . . . . . . Alert | -11 -10 -10 -9 -9 -9 -8 -8 -8 -7 -7 -7 -7 -6 -6 -6 -6 -5 -5 -5 -5 -5 -5 -4 -4 -4 -3 -2 -1 -1 -1 -1 ------- Run | Scr Mat Min Mat Min Exi Min Mat Gar Fac Gar Fac Gar Fac Low Low Dat Pro Fac Ext Cet Arc Hub Fac Arm Lab Res Res Acc Gar Acc Com Peak Influence 1749 | 30 145 158 666 506 . 119 277 1100 645 1006 527 836 469 . . . . 251 825 318 269 740 514 614 . 796 588 1104 1749 1341 469 Initial 1048 | . 19 13 . 241 . . 46 97 577 329 527 270 438 . . . . 56 5 174 . . 362 200 . . 248 285 883 1048 241 Average 413 | 14 66 56 318 293 . 90 168 792 450 802 437 622 247 . . . . 118 184 194 61 334 378 239 . 400 288 574 1457 584 262 Maximum Alert Level 5 | . . . 2 2 . . 1 4 2 3 2 3 2 . . . . 1 3 1 1 3 2 2 . 3 2 4 5 4 3 Low Security (%) 36 | 100 100 100 35 29 . 100 64 3 . . . . 40 . . . . 94 69 62 88 18 . 37 . 28 39 . . 12 33 Level 1 24 | . . . 24 58 . . 35 2 36 6 58 13 36 . . . . 5 15 37 11 38 50 52 . 21 22 52 . 45 49 Level 2 20 | . . . 40 12 . . . 35 63 24 41 47 23 . . . . . 5 . . 40 49 9 . 36 37 11 . 7 15 Level 3 11 | . . . . . . . . 37 . 68 . 38 . . . . . . 9 . . 2 . . . 13 . 31 6 7 2 Level 4 6 | . . . . . . . . 21 . . . . . . . . . . . . . . . . . . . 4 67 27 . Level 5 1 | . . . . . . . . . . . . . . . . . . . . . . . . . . . . . 26 . . High Security . | . . . . . . . . . . . . . . . . . . . . . . . . . . . . . . . . Max Security . | . . . . . . . . . . . . . . . . . . . . . . . . . . . . . . . . Squads Dispatched 118 | . 3 . 5 1 . 1 . . 8 . 2 . 13 . 1 . . 7 7 . . 10 8 5 . 11 8 11 . 12 5 Investigation 16 | . . . 1 1 . 1 . . 2 . 2 . . . . . . 1 3 . . 1 1 . . 1 2 . . . . Extermination 28 | . . . . . . . . . 2 . . . 3 . . . . 2 . . . 1 2 5 . 2 2 2 . 4 3 Reinforcement 34 | . 3 . 4 . . . . . 3 . . . 3 . . . . 2 4 . . 4 4 . . 1 1 3 . 1 1 Assault 9 | . . . . . . . . . . . . . . . 1 . . . . . . . 1 . . 2 . 3 . 1 1 Garrison 18 | . . . . . . . . . 1 . . . 7 . . . . 2 . . . 2 . . . 3 . . . 3 . Intercept 13 | . . . . . . . . . . . . . . . . . . . . . . 2 . . . 2 3 3 . 3 . Construction Impeded 9 | . . . . . . . . . . . . . . . . . . . 2 . . . 2 . . . 1 3 . 1 . Haulers Reinforced 4 | . . . . . . . . . . . . . 1 . . . . 1 . . . 1 1 . . . . . . . . Stealth | -11 -10 -10 -9 -9 -9 -8 -8 -8 -7 -7 -7 -7 -6 -6 -6 -6 -5 -5 -5 -5 -5 -5 -4 -4 -4 -3 -2 -1 -1 -1 -1 --------- Run | Scr Mat Min Mat Min Exi Min Mat Gar Fac Gar Fac Gar Fac Low Low Dat Pro Fac Ext Cet Arc Hub Fac Arm Lab Res Res Acc Gar Acc Com Distress Signals 24 | . 1 . 6 . . . 1 . 1 . . . 2 . . . . . . 1 . 2 3 . . 1 2 2 . 1 1 Communications Jammed 37 | . . . . . . . . . . . . . . . . . . . . . . . 12 . . . . . . 25 . Distress Signals 37 | . . . . . . . . . . . . . . . . . . . . . . . 12 . . . . . . 25 . Times Spotted 798 | . 28 19 70 17 . 9 28 35 24 37 2 31 31 12 27 4 11 13 44 10 10 39 33 28 4 38 22 42 22 42 66 Peak Tracking Total 12 | . 4 3 5 4 . 3 5 5 5 6 1 6 5 4 9 3 4 3 9 5 1 8 8 4 4 5 4 8 6 10 12 Tactical Retreats 49 | . 3 2 6 2 . 1 3 8 . 7 . . 2 . 1 . 2 . 5 1 . . 1 . . . . 2 . 2 1 Traps | -11 -10 -10 -9 -9 -9 -8 -8 -8 -7 -7 -7 -7 -6 -6 -6 -6 -5 -5 -5 -5 -5 -5 -4 -4 -4 -3 -2 -1 -1 -1 -1 ------- Run | Scr Mat Min Mat Min Exi Min Mat Gar Fac Gar Fac Gar Fac Low Low Dat Pro Fac Ext Cet Arc Hub Fac Arm Lab Res Res Acc Gar Acc Com Traps Triggered 39 | . 2 . 1 . . . . 12 . 8 . 1 . . . . . 1 3 . . 3 2 . . 2 . . 3 1 . Indirectly 1 | . . . . . . . . . . 1 . . . . . . . . . . . . . . . . . . . . . Trap Hack Attempts . | . . . . . . . . . . . . . . . . . . . . . . . . . . . . . . . . Triggered . | . . . . . . . . . . . . . . . . . . . . . . . . . . . . . . . . Disarmed . | . . . . . . . . . . . . . . . . . . . . . . . . . . . . . . . . Reprogrammed . | . . . . . . . . . . . . . . . . . . . . . . . . . . . . . . . . Reused 17 | . . . . . . . 1 . 6 . . . 4 . . . . . 3 . . . . 2 . . 1 . . . . Traps Reconfigurated 92 | . . . . . . . . . 24 . . 19 21 . . . . . 3 . . . . 19 . . 6 . . . . Traps Extracted . | . . . . . . . . . . . . . . . . . . . . . . . . . . . . . . . . Installed 3 | . . . 1 . . . 2 . . . . . . . . . . . . . . . . . . . . . . . . Triggered 20 | . . . . . . . 1 . 6 3 . . 4 . . . . . 3 . . . . 2 . . 1 . . . . Machines | -11 -10 -10 -9 -9 -9 -8 -8 -8 -7 -7 -7 -7 -6 -6 -6 -6 -5 -5 -5 -5 -5 -5 -4 -4 -4 -3 -2 -1 -1 -1 -1 ---------- Run | Scr Mat Min Mat Min Exi Min Mat Gar Fac Gar Fac Gar Fac Low Low Dat Pro Fac Ext Cet Arc Hub Fac Arm Lab Res Res Acc Gar Acc Com Machines Disabled 69 | . . . . 4 . . 1 3 1 5 . 4 4 . . . . 2 5 1 . 9 4 6 3 2 2 . 5 7 1 Max in Single Turn 6 | . . . . 1 . . 1 1 1 1 . 1 . . . . . 1 1 1 . 6 1 2 1 1 1 . 1 2 1 Garrison Access 8 | . . . . . . . . . . . . . 1 . . . . 2 . . . 1 1 . . 2 . 1 . . . Garrison Relay 15 | . . . . . . . . 3 . 4 . 4 . . . . . . . . . . . . . . . . 4 . . Network Hub 1 | . . . . . . . . . . . . . . . . . . . . . . 1 . . . . . . . . . Machines Sabotaged . | . . . . . . . . . . . . . . . . . . . . . . . . . . . . . . . . Garrisons Compromised . | . . . . . . . . . . . . . . . . . . . . . . . . . . . . . . . . Overloaded Fab Kills 2 | . . . . . . . . . . . . . . . . . . . . . . . . . . . 2 . . . . Fab Network Shutdowns 1 | . . . . . . . . . . . . . . . . . . . . . . . . . . . 1 . . . . Hacking | -11 -10 -10 -9 -9 -9 -8 -8 -8 -7 -7 -7 -7 -6 -6 -6 -6 -5 -5 -5 -5 -5 -5 -4 -4 -4 -3 -2 -1 -1 -1 -1 --------- Run | Scr Mat Min Mat Min Exi Min Mat Gar Fac Gar Fac Gar Fac Low Low Dat Pro Fac Ext Cet Arc Hub Fac Arm Lab Res Res Acc Gar Acc Com Machines Accessed 96 | . 5 1 7 1 2 1 2 . 6 . 3 . 8 2 . 3 . 8 12 4 . 7 1 6 1 5 6 3 . . 2 Terminals 61 | . 4 1 6 . . 1 1 . 3 . 2 . 3 . . . . 6 11 4 . 6 . 4 . 3 4 . . . 2 Fabricators 7 | . . . . . . . . . 2 . . . 1 . . . . . . . . . . 2 . . 2 . . . . Repair Stations 2 | . 1 . . . . . . . . . . . 1 . . . . . . . . . . . . . . . . . . Recycling Units 1 | . . . . . . . . . . . . . . . . . . . 1 . . . . . . . . . . . . Scanalyzers 3 | . . . 1 . . . . . . . . . 1 . . . . . . . . . . . . . . 1 . . . Garrison Access 13 | . . . . . . . 1 . 1 . 1 . 2 . . . . 2 . . . 1 1 . . 2 . 2 . . . Total Hacks 360 | . 13 4 23 1 5 5 8 . 15 . 11 . 23 9 . 25 . 20 26 12 . 24 2 47 19 21 33 10 . . 4 Successful 223 | . 7 1 10 1 5 . 7 . 9 . 5 . 13 9 . 25 . 12 10 6 . 13 2 28 19 13 19 7 . . 2 Failed 137 | . 6 3 13 . . 5 1 . 6 . 6 . 10 . . . . 8 16 6 . 11 . 19 . 8 14 3 . . 2 Catastrophic 27 | . 1 1 3 . . 1 . . 1 . 2 . 2 . . . . 3 3 1 . 2 . 2 . 1 4 . . . . Database Lockouts . | . . . . . . . . . . . . . . . . . . . . . . . . . . . . . . . . Manual 161 | . 10 4 12 . 1 5 4 . 9 . 7 . 6 . . . . 13 8 13 . 17 1 20 . 10 18 . . . 3 Terminals 192 | . 10 4 20 . . 5 6 . 5 . 7 . 5 . . . . 13 25 12 . 21 . 23 . 13 19 . . . 4 Fabricators 47 | . . . . . . . . . 6 . . . 3 . . . . . . . . . . 24 . . 14 . . . . Repair Stations 5 | . 3 . . . . . . . . . . . 2 . . . . . . . . . . . . . . . . . . Recycling Units 1 | . . . . . . . . . . . . . . . . . . . 1 . . . . . . . . . . . . Scanalyzers 16 | . . . 3 . . . . . . . . . 7 . . . . . . . . . . . . . . 6 . . . Garrison Access 40 | . . . . . . . 2 . 4 . 4 . 6 . . . . 7 . . . 3 2 . . 8 . 4 . . . Terminal Hacks 120 | . 3 1 5 1 5 . 4 . 1 . 1 . 1 9 . 25 . 4 8 4 . 7 . 10 19 4 7 . . . 1 Record 37 | . . . . . 4 . . . . . . . . 8 . 6 . . . . . . . . 19 . . . . . . Part Schematic 19 | . . 1 . . . . . . . . . . . . . 9 . 1 . 2 . 1 . 4 . . 1 . . . . Robot Schematic 10 | . . . 2 . . . . . . . . . . . . 7 . . 1 . . . . . . . . . . . . Robot Analysis 2 | . 2 . . . . . . . . . . . . . . . . . . . . . . . . . . . . . . Prototype ID Bank 8 | . . . 1 . . . . . . . . . . . . 3 . 1 . . . 1 . . . 1 1 . . . . Open Door 5 | . . . . 1 . . . . . . . . . 1 . . . 1 1 . . . . . . . . . . . 1 Level Access Points 2 | . . . . . . . . . . . . . . . . . . . . . . . . . . 1 1 . . . . Branch Access Points 2 | . . . 1 . . . 1 . . . . . . . . . . . . . . . . . . . . . . . . Terminal Index 2 | . . . . . . . . . 1 . . . 1 . . . . . . . . . . . . . . . . . . Unreport Threat 13 | . . . . . . . . . . . 1 . . . . . . 1 3 2 . 3 . 1 . . 2 . . . . Locate Traps 2 | . . . . . . . 1 . . . . . . . . . . . 1 . . . . . . . . . . . . Maintenance Status 1 | . . . . . . . . . . . . . . . . . . . . . . . . . . 1 . . . . . Patrol Status 1 | . . . . . . . . . . . . . . . . . . . . . . 1 . . . . . . . . . Recall Extermination 2 | . . . . . . . . . . . . . . . . . . . . . . . . 1 . . 1 . . . . Recall Reinforcements 1 | . . . . . . . . . . . . . . . . . . . 1 . . . . . . . . . . . . Hauler Manifests 4 | . . . . . . . 1 . . . . . . . . . . . 1 . . . . 1 . . 1 . . . . Registered Prototypes 1 | . . . . . . . . . . . . . . . . . . . . . . . . . . 1 . . . . . Zone Layout 7 | . 1 . 1 . . . 1 . . . . . . . . . . . . . . 1 . 3 . . . . . . . EX-Prototype ID Bank 1 | . . . . . 1 . . . . . . . . . . . . . . . . . . . . . . . . . . Fabricator Hacks 25 | . . . . . . . . . 4 . . . 1 . . . . . . . . . . 12 . . 8 . . . . Load Schematic 10 | . . . . . . . . . 1 . . . 1 . . . . . . . . . . 5 . . 3 . . . . Build 15 | . . . . . . . . . 3 . . . . . . . . . . . . . . 7 . . 5 . . . . Repair Station Hacks 3 | . 2 . . . . . . . . . . . 1 . . . . . . . . . . . . . . . . . . Scan Component 2 | . 1 . . . . . . . . . . . 1 . . . . . . . . . . . . . . . . . . Repair 1 | . 1 . . . . . . . . . . . . . . . . . . . . . . . . . . . . . . Recycling Unit Hacks . | . . . . . . . . . . . . . . . . . . . . . . . . . . . . . . . . Scanalyzer 11 | . . . 3 . . . . . . . . . 5 . . . . . . . . . . . . . . 3 . . . Insert Component 6 | . . . 1 . . . . . . . . . 2 . . . . . . . . . . . . . . 3 . . . Analyze 5 | . . . 2 . . . . . . . . . 3 . . . . . . . . . . . . . . . . . . Garrison Access Hacks 18 | . . . . . . . 1 . 1 . 1 . 1 . . . . 4 . . . 1 1 . . 4 . 4 . . . Unlock Access 4 | . . . . . . . 1 . 1 . 1 . . . . . . . . . . . . . . . . 1 . . . Seal Access 7 | . . . . . . . . . . . . . 1 . . . . 2 . . . 1 . . . 2 . 1 . . . Coupler Status 7 | . . . . . . . . . . . . . . . . . . 2 . . . . 1 . . 2 . 2 . . . Unauthorized Hacks 46 | . 2 . 2 . . . 2 . 3 . 3 . 4 . . . . 4 2 2 . 5 1 6 . 5 4 . . . 1 Terminals 24 | . 2 . 2 . . . 2 . 1 . 1 . . . . . . 2 2 2 . 3 . 4 . 2 . . . . 1 Track 8 | . 1 . 1 . . . 1 . . . . . . . . . . . . 1 . 1 . 2 . . . . . . 1 Assimilate 3 | . . . 1 . . . . . 1 . . . . . . . . . . . . . . . . 1 . . . . . Botnet 10 | . 1 . . . . . 1 . . . . . . . . . . 1 2 1 . 2 . 2 . . . . . . . Disrupt 1 | . . . . . . . . . . . . . . . . . . . . . . . . . . 1 . . . . . Operators 2 | . . . . . . . . . . . 1 . . . . . . 1 . . . . . . . . . . . . . Fabricators 7 | . . . . . . . . . 1 . . . . . . . . . . . . . . 2 . . 4 . . . . Prioritize 3 | . . . . . . . . . . . . . . . . . . . . . . . . 1 . . 2 . . . . Siphon 2 | . . . . . . . . . . . . . . . . . . . . . . . . 1 . . 1 . . . . Haulers 1 | . . . . . . . . . 1 . . . . . . . . . . . . . . . . . . . . . . Overload 1 | . . . . . . . . . . . . . . . . . . . . . . . . . . . 1 . . . . Repair Stations 1 | . . . . . . . . . . . . . 1 . . . . . . . . . . . . . . . . . . Mechanics 1 | . . . . . . . . . . . . . 1 . . . . . . . . . . . . . . . . . . Recycling Units . | . . . . . . . . . . . . . . . . . . . . . . . . . . . . . . . . Scanalyzers . | . . . . . . . . . . . . . . . . . . . . . . . . . . . . . . . . Garrison Access 14 | . . . . . . . . . 1 . 2 . 3 . . . . 2 . . . 2 1 . . 3 . . . . . Broadcast 1 | . . . . . . . . . . . 1 . . . . . . . . . . . . . . . . . . . . Reprogram 11 | . . . . . . . . . . . 1 . 3 . . . . 2 . . . 2 . . . 3 . . . . . Eject 2 | . . . . . . . . . 1 . . . . . . . . . . . . . 1 . . . . . . . . Data Cores Recovered 1 | . . . . . . . . . . . . . . . . . . . 1 . . . . . . . . . . . . Used . | . . . . . . . . . . . . . . . . . . . . . . . . . . . . . . . . Hacking Detections 80 | . 5 1 7 . . 1 2 . 5 . 3 . 8 . . . . 8 12 3 . 7 . 5 . 5 6 1 . . 1 Full Trace Events 10 | . . . . . . 1 . . 1 . 2 . . . . . . . 3 . . 1 . . . 1 1 . . . . Feedback Events . | . . . . . . . . . . . . . . . . . . . . . . . . . . . . . . . . Feedback Blocked . | . . . . . . . . . . . . . . . . . . . . . . . . . . . . . . . . Robot Schematics Acquired 10 | . . . 2 . . . . . . . . . . . . 7 . . 1 . . . . . . . . . . . . Robots Built 11 | . . . . . . . . . . . . . . . . . . . . . . . . 11 . . . . . . . Matter 1107 | . . . . . . . . . . . . . . . . . . . . . . . . 1107 . . . . . . . Time 222 | . . . . . . . . . . . . . . . . . . . . . . . . 222 . . . . . . . Total Robot Build Rating 75 | . . . . . . . . . . . . . . . . . . . . . . . . 75 . . . . . . . Part Schematics Acquired 21 | . . 1 1 . . . . . . . . . 2 . . 9 . 1 . 1 . 1 . 4 . . 1 . . . . Parts Built 12 | . . . . . . . . . 3 . . . . . . . . . . . . . . 3 . . 6 . . . . Matter 1885 | . . . . . . . . . 306 . . . . . . . . . . . . . . 417 . . 1162 . . . . Time 495 | . . . . . . . . . 153 . . . . . . . . . . . . . . 88 . . 254 . . . . Total Part Build Rating 52 | . . . . . . . . . 3 . . . . . . . . . . . . . . 7 . . 42 . . . . Parts Repaired 1 | . 1 . . . . . . . . . . . . . . . . . . . . . . . . . . . . . . Time 26 | . 26 . . . . . . . . . . . . . . . . . . . . . . . . . . . . . . Parts Recycled . | . . . . . . . . . . . . . . . . . . . . . . . . . . . . . . . . Recycled Matter . | . . . . . . . . . . . . . . . . . . . . . . . . . . . . . . . . Retrieved Matter . | . . . . . . . . . . . . . . . . . . . . . . . . . . . . . . . . Retrieved Components . | . . . . . . . . . . . . . . . . . . . . . . . . . . . . . . . . Parts Scanalyzed 3 | . . . 1 . . . . . . . . . 2 . . . . . . . . . . . . . . . . . . Part Schematics Acquired 3 | . . . 1 . . . . . . . . . 2 . . . . . . . . . . . . . . . . . . Parts Damaged . | . . . . . . . . . . . . . . . . . . . . . . . . . . . . . . . . Bothacking | -11 -10 -10 -9 -9 -9 -8 -8 -8 -7 -7 -7 -7 -6 -6 -6 -6 -5 -5 -5 -5 -5 -5 -4 -4 -4 -3 -2 -1 -1 -1 -1 ------------ Run | Scr Mat Min Mat Min Exi Min Mat Gar Fac Gar Fac Gar Fac Low Low Dat Pro Fac Ext Cet Arc Hub Fac Arm Lab Res Res Acc Gar Acc Com Used RIF Installer 4 | . . . . . . . . 1 . 1 . 1 . . . . . . . . . . . . . . . . 1 . . Coupler Efficiency 1 | . . . . . . . . . . . . 1 . . . . . . . . . . . . . . . . . . . Structural Interface 1 | . . . . . . . . . . 1 . . . . . . . . . . . . . . . . . . . . . Autoassimilate 1 | . . . . . . . . . . . . . . . . . . . . . . . . . . . . . 1 . . Robots Hacked 93 | . . . . . . . . 4 4 7 2 10 11 1 7 1 . 4 4 . . . 6 1 1 3 . . 7 15 5 Non-combat 18 | . . . . . . . . . 2 . . . 6 . . . . 1 . . . . 1 . . 1 . . . 6 1 Combat 75 | . . . . . . . . 4 2 7 2 10 5 1 7 1 . 3 4 . . . 5 1 1 2 . . 7 9 4 Autoassimilated 7 | . . . . . . . . . . . . . . . . . . . . . . . . . . . . . 3 2 2 Robot Hacks Applied 111 | . . . . . . . . 4 7 10 2 11 13 1 7 1 . 4 5 . . . 7 1 1 6 . . 5 22 4 parse_system 5 | . . . . . . . . . . 2 . . 1 . . 1 . . . . . . . . 1 . . . . . . find_chute 1 | . . . . . . . . . . . . . 1 . . . . . . . . . . . . . . . . . . deconstruct_machine 1 | . . . . . . . . . . . . . 1 . . . . . . . . . . . . . . . . . . find_fabricator 1 | . . . . . . . . . . . . . 1 . . . . . . . . . . . . . . . . . . drop_inventory 5 | . . . . . . . . . 1 . . . 1 . . . . . . . . . . . . . . . . 3 . ignore_parts 1 | . . . . . . . . . . . . . . . . . . 1 . . . . . . . . . . . . . purge_threat 14 | . . . . . . . . . 2 . . . . . . . . . . . . . . . . 3 . . . 8 1 block_reporting 1 | . . . . . . . . . . . . . . . . . . . . . . . . . . . . . . . 1 map_route 2 | . . . . . . . . . . . . . 2 . . . . . . . . . . . . . . . . . . find_garrison 1 | . . . . . . . . . 1 . . . . . . . . . . . . . . . . . . . . . . disrupt_area 1 | . . . . . . . . . . . . . . . . . . . 1 . . . . . . . . . . . . spike_heat 3 | . . . . . . . . 1 . 1 . . . . . . . . 1 . . . . . . . . . . . . overload_power 2 | . . . . . . . . . . . . . 1 . . . . . . . . . 1 . . . . . . . . amplify_resonance 4 | . . . . . . . . . . 2 . 1 . . . . . . . . . . . . . . . . 1 . . reboot_system 8 | . . . . . . . . . . . 1 2 . . . . . . . . . . . . . 1 . . . 4 . overwrite_iff 13 | . . . . . . . . . . 2 . 5 1 . . . . 1 1 . . . 1 . . 1 . . 1 . . streamctrl_low 1 | . . . . . . . . . . . . . . . . . . . . . . . . . . . . . . 1 . streamctrl_high 4 | . . . . . . . . . . . . . . . . . . . . . . . 2 1 . . . . 1 . . formatsys_low 4 | . . . . . . . . . 1 . . . 1 . . . . . . . . . . . . 1 . . . 1 . formatsys_high 39 | . . . . . . . . 3 2 3 1 3 3 1 7 . . 2 2 . . . 3 . . . . . 2 5 2 Relay Couplers Released 78 | . . . . . . . . 15 4 16 . 17 . . . . . 3 . . . . 4 . . . . 1 18 . . Ejected 8 | . . . . . . . . . 4 . . . . . . . . . . . . . 4 . . . . . . . . Machine Destruction 70 | . . . . . . . . 15 . 16 . 17 . . . . . 3 . . . . . . . . . 1 18 . . Attached 40 | . . . . . . . . 2 3 4 . 3 4 . 2 . . 2 1 . . . 4 1 . 2 . . 5 5 2 Robots Rewired 23 | . . . . . . . . 6 . 1 . . . . . . . . 16 . . . . . . . . . . . . Allies Hacked 15 | . . . . . . . . . 2 . . . . . . . . 2 . . . . . 7 . . . . . 3 1 Hacks Repelled 1 | . . . . . . . . . . . . . . . . . . . . . . . . . . . 1 . . . . Allies | -11 -10 -10 -9 -9 -9 -8 -8 -8 -7 -7 -7 -7 -6 -6 -6 -6 -5 -5 -5 -5 -5 -5 -4 -4 -4 -3 -2 -1 -1 -1 -1 -------- Run | Scr Mat Min Mat Min Exi Min Mat Gar Fac Gar Fac Gar Fac Low Low Dat Pro Fac Ext Cet Arc Hub Fac Arm Lab Res Res Acc Gar Acc Com Total Allies 136 | . . . 1 1 . . . 9 3 6 3 7 8 4 7 . . 5 25 5 . 4 5 18 . 6 . . 7 8 4 Largest Group 12 | . . . 1 1 . . . 9 10 4 4 4 4 6 5 5 . 3 12 10 6 5 1 10 5 5 1 . 5 8 3 Highest-Rated Group 646 | . . . 10 31 . . . 143 169 106 90 90 128 189 163 163 . 128 479 646 552 402 64 479 235 270 44 . 290 410 192 Highest-Rated Ally 156 | . . . 10 31 . . . 16 32 32 32 32 41 41 47 47 . 49 156 156 150 94 64 64 47 64 44 . 69 64 64 Total Orders 53 | . . . 1 . . . . 3 2 4 7 12 2 . . 1 . 4 1 3 . . . 2 2 . 1 . . 3 5 STAY 29 | . . . 1 . . . . 2 1 1 3 6 1 . . 1 . 2 1 2 . . . 1 1 . 1 . . 2 3 FOLLOW 23 | . . . . . . . . 1 1 3 4 6 1 . . . . 2 . 1 . . . 1 1 . . . . . 2 RETURN 1 | . . . . . . . . . . . . . . . . . . . . . . . . . . . . . . 1 . Ally Attacks 938 | . . . . 1 . . . 25 82 28 12 48 68 33 37 18 . 24 101 51 14 93 13 81 30 48 . . 12 100 19 Total Damage 26038 | . . . . 20 . . . 381 1218 973 419 847 1399 615 910 232 . 755 2817 1248 608 3230 487 2584 758 1843 . . 485 3365 844 Kills 174 | . . . . 1 . . . 2 10 8 3 11 15 8 9 1 . 8 20 9 3 13 1 16 1 8 . . 3 16 8 Allies Corrupted 13 | . . . . . . . . . . . . . . . . . . . 2 . . 1 . 1 1 1 1 . . 4 2 Allies Melted 1 | . . . . . . . . . . . . . . . . . . . . . . 1 . . . . . . . . . Intel | -11 -10 -10 -9 -9 -9 -8 -8 -8 -7 -7 -7 -7 -6 -6 -6 -6 -5 -5 -5 -5 -5 -5 -4 -4 -4 -3 -2 -1 -1 -1 -1 ------- Run | Scr Mat Min Mat Min Exi Min Mat Gar Fac Gar Fac Gar Fac Low Low Dat Pro Fac Ext Cet Arc Hub Fac Arm Lab Res Res Acc Gar Acc Com Robot Analysis Total 117 | . 2 . . . . . . . . . . . . . . 115 . . . . . . . . . . . . . . . Derelict Logs Recovered 4 | . . 1 . 1 . . . . . . . . . 1 . . 1 . . . . . . . . . . . . . . Drone Launches 8 | . . . . . . . . . . . . . . . . . . . 2 . . . . . . . . . . 6 . Drone Recoveries 2 | . . . . . . . . . . . . . . . . . . . . . . . . . . . . . . 2 . Exploration | -11 -10 -10 -9 -9 -9 -8 -8 -8 -7 -7 -7 -7 -6 -6 -6 -6 -5 -5 -5 -5 -5 -5 -4 -4 -4 -3 -2 -1 -1 -1 -1 ------------- Run | Scr Mat Min Mat Min Exi Min Mat Gar Fac Gar Fac Gar Fac Low Low Dat Pro Fac Ext Cet Arc Hub Fac Arm Lab Res Res Acc Gar Acc Com Turns Passed 40315 | 268 1483 1339 2422 1323 1088 263 1280 2652 1023 1915 478 1767 2020 878 1127 491 557 1019 2089 429 1724 1196 1002 1551 678 1183 1233 1014 1837 1382 1604 Spaces Moved 17329 | 118 664 679 857 603 538 102 549 1210 490 1110 302 1033 1070 469 524 203 275 472 820 161 288 492 324 572 253 447 400 340 753 544 667 Core 5 | 5 . . . . . . . . . . . . . . . . . . . . . . . . . . . . . . . Treads 9578 | 113 664 679 857 603 538 102 443 1053 . . . . . . 228 119 . . . . . . 203 572 253 447 400 340 753 544 667 Legs 2713 | . . . . . . . . . . . . . . . . 84 275 472 820 161 288 492 121 . . . . . . . . Wheels 5033 | . . . . . . . 106 157 490 1110 302 1033 1070 469 296 . . . . . . . . . . . . . . . . Hover . | . . . . . . . . . . . . . . . . . . . . . . . . . . . . . . . . Flight . | . . . . . . . . . . . . . . . . . . . . . . . . . . . . . . . . Fastest Speed 50 | 50 160 180 200 200 180 200 135 130 130 140 150 150 150 170 170 180 180 180 180 210 210 180 180 180 240 172 172 177 177 190 165 Average Speed 179 | 155 173 180 201 200 199 200 177 173 139 141 150 153 164 172 185 190 180 180 193 234 225 189 200 186 240 188 174 177 189 190 171 Slowest Speed 300 | 160 180 180 260 200 200 200 180 260 140 150 150 160 240 180 260 300 180 180 210 240 240 240 210 280 240 195 185 177 220 190 200 Overloaded Moves . | . . . . . . . . . . . . . . . . . . . . . . . . . . . . . . . . Propulsion Burnouts . | . . . . . . . . . . . . . . . . . . . . . . . . . . . . . . . . Robots Hopped 1 | . . . . . . . . . . . . . . . . . . . . . . . . 1 . . . . . . . Cave-ins Triggered 1 | . . . . . . . . . . . . . . . . . . . . . . . . . . . . . . 1 . Exploration Rate (%) 54 | 9 92 99 76 95 90 36 36 89 13 99 9 98 26 65 66 78 49 18 87 71 74 44 14 40 99 12 11 10 91 13 22 Regions Visited 31 Branch Regions 15 Pre-discovered Areas 32 | . . 1 . 1 1 . . . . . . . . . . 29 . . . . . . . . . . . . . . . Known Exits Taken 8 | . . . 1 . . . 1 . 1 . 1 . . . . . . . . . . 1 . . . 1 1 1 . . . Unknown Exits Taken 19 | 1 1 1 . 1 1 1 . . . . . . 1 1 1 1 1 1 1 1 1 . 1 1 1 . . . . 1 . Scrap Searched 6 | . . 1 . 1 . 1 . . . . . . . . 2 . 1 . . . . . . . . . . . . . . Spaces Dug 81 | . . . . . . . 1 9 2 2 . . 3 . . . 7 2 2 . . 14 4 4 . 3 7 19 . 2 . Terrain Destroyed 614 | . . 4 11 53 . 28 20 13 2 2 . 1 3 . 13 . 8 2 18 . 1 208 50 16 . 3 19 43 20 35 41 Melee 28 | . . . . . . . 1 1 2 . . . 3 . . . . 2 . . . 5 . 1 . 3 7 1 . 2 . Projectile 161 | . . . . . . . . 3 . . . . . . . . 1 . 18 . 1 36 50 6 . . 12 17 9 7 1 AOE 425 | . . 4 11 53 . 28 19 9 . 2 . 1 . . 13 . 7 . . . . 167 . 9 . . . 25 11 26 40 Terrain Rammed . | . . . . . . . . . . . . . . . . . . . . . . . . . . . . . . . . Walls Destroyed . | . . . . . . . . . . . . . . . . . . . . . . . . . . . . . . . . Machines Disabled . | . . . . . . . . . . . . . . . . . . . . . . . . . . . . . . . . Actions | -11 -10 -10 -9 -9 -9 -8 -8 -8 -7 -7 -7 -7 -6 -6 -6 -6 -5 -5 -5 -5 -5 -5 -4 -4 -4 -3 -2 -1 -1 -1 -1 --------- Run | Scr Mat Min Mat Min Exi Min Mat Gar Fac Gar Fac Gar Fac Low Low Dat Pro Fac Ext Cet Arc Hub Fac Arm Lab Res Res Acc Gar Acc Com Total 23936 | 163 828 738 1227 656 553 133 747 1604 759 1338 321 1163 1255 519 609 303 307 591 1162 196 1347 626 547 977 303 640 802 606 1084 801 1031 Wait 2773 | . 42 10 50 10 . 2 31 187 169 20 8 11 51 10 . 42 . 49 41 1 1006 15 40 262 7 63 245 81 139 73 108 Move 17298 | 117 663 678 856 602 537 102 549 1208 489 1109 302 1032 1069 468 523 202 274 471 819 160 287 491 323 569 252 446 399 340 751 543 667 Hop 1 | . . . . . . . . . . . . . . . . . . . . . . . . 1 . . . . . . . Pick Up 413 | 3 21 8 32 5 10 3 25 13 12 17 1 20 16 6 9 15 3 6 16 4 10 6 24 21 8 12 15 15 20 18 19 Fast Attach 135 | 5 . 1 10 . 2 . 8 2 2 4 . 3 2 1 3 4 . . 6 4 5 . 12 9 6 4 5 7 17 3 10 Attach 209 | 1 5 1 15 1 . 3 9 6 5 5 . 9 3 2 6 9 2 4 19 1 . 2 24 9 . 6 9 14 6 15 18 Detach 31 | . . . 3 . . . 1 . . 1 . . . 1 . 3 . . . . . . 3 1 . 1 . 5 3 2 7 Swap 464 | . 5 3 19 5 . 2 11 16 27 31 2 15 43 9 13 6 4 15 40 4 3 15 17 27 4 22 16 14 28 26 22 Drop 396 | . 6 5 34 . 4 . 35 16 12 16 1 18 10 7 7 16 3 5 3 6 15 8 17 28 13 10 23 12 34 15 17 Fire 1853 | 37 86 31 207 33 . 19 75 98 41 75 5 44 57 14 48 5 21 33 86 16 3 69 87 48 10 68 81 116 78 101 161 Melee 92 | . . . . . . . 1 17 2 4 2 3 4 1 . 1 . 8 . . 18 6 . 2 3 6 8 1 . 5 . Ram . | . . . . . . . . . . . . . . . . . . . . . . . . . . . . . . . . Kick 1 | . . . . . . . . . . . . . . . . . . . . . . 1 . . . . . . . . . Crush 6 | . . 1 . . . 2 . . . . . . . . . . . . . . . . . . . . 1 1 . . 1 Escape Stasis 115 | . . . . . . . . 18 . 56 . 8 . . . . . . 10 . . 13 . . . 2 . . 8 . . Rewire 146 | . . . . . . . . 23 . . . . . . . . . . 122 . . . . . . . . . . . 1 Trap 3 | . . . 1 . . . 2 . . . . . . . . . . . . . . . . . . . . . . . . Miscellaneous . | . . . . . . . . . . . . . . . . . . . . . . . . . . . . . . . . Route ------- -11/Scrapyard -10/Materials (discovered 5 exits: *Mat x3 / *Min x2) -10/Mines (discovered 2 exits: *Mat x2) -9/Materials (discovered 4 exits: *Mat x2 / *Min x2) -9/Mines (discovered 4 exits: *Mat x2 / *Exi / [*Zio]) -9/Exiles -8/Mines (discovered 2 exits: *Mat x2) -8/Materials (discovered 2 exits: *Fac / Gar) -8/Garrison (discovered 3 exits: *Fac x3) -7/Factory -7/Garrison (discovered 3 exits: *Fac x3) -7/Factory -7/Garrison (discovered 3 exits: *Fac x3) -6/Factory (discovered 2 exits: Fac / *Low) -6/Lower Caves -6/Lower Caves (discovered 2 exits: *Fac / *Dat) -6/Data Miner -5/Proximity Caves -5/Factory (discovered 4 exits: Fac / *Upp x2 / *Ext) -5/Extension (discovered 2 exits: *Fac / *Cet) -5/Cetus -5/Archives (discovered 3 exits: *Fac / *Hub x2) -5/Hub_04(d) -4/Factory (discovered 2 exits: *Res / *Arm) -4/Armory (discovered 2 exits: Res / *Lab) -4/Lab -3/Research (discovered 3 exits: *Res x3) -2/Research (discovered 3 exits: *Acc x3) -1/Access -1/Garrison (discovered 2 exits: [*Acc x2]) -1/Access -1/Command History --------- Turn | Location | Event 12 | -11/Scrapyard | Discovered new exit (range 14) 269 | -11/Scrapyard | Entered Materials 305 | -10/Materials | Build established: Mutant 368 | -10/Materials | Discovered new exit (range 8) 688 | -10/Materials | Discovered new exit (range 3) 751 | -10/Materials | Repaired Lgt. Treads 1003 | -10/Materials | Build established: Hauler-Mutant 1198 | -10/Materials | Discovered new exit (range 5) 1282 | -10/Materials | Discovered new exit (range 8) 1322 | -10/Materials | Discovered new exit (range 9) 1750 | -10/Materials | Lost 3 parts (1p1n1w) 1752 | -10/Materials | Entered Mines 2121 | -10/Mines | A weapon hastily lodged in a ceiling crevice suddenly fell to the ground 2277 | -10/Mines | Learned location of Zion (-7) 2348 | -10/Mines | Discovered new exit (range 9) 2403 | -10/Mines | Found a hidden stash of uninstalled traps 2428 | -10/Mines | Discovered new exit (range 12) 3091 | -10/Mines | Entered Materials 3091 | -9/Materials | Evolved 2 slots: Utility x2 3657 | -9/Materials | Identified exit to Mines 3765 | -9/Materials | Build established: Scavenger-Mutant 4012 | -9/Materials | Discovered new exit (range 16) 4621 | -9/Materials | Core integrity fell below 50% 4812 | -9/Materials | Discovered new exit (range 9) 5083 | -9/Materials | Build established: Hauler-Mutant 5513 | -9/Materials | Entered Mines 5514 | -9/Mines | A Derelict revealed a hidden shortcut to a safe place 5543 | -9/Mines | Discovered new exit (range 6) 5898 | -9/Mines | Discovered new exit (range 13) 5963 | -9/Mines | Received a Mining Laser from a helpful Derelict 6123 | -9/Mines | Met a Derelict shopkeep closing up shop 6458 | -9/Mines | Deemed a non-threat by the Exiles lab entrance 6460 | -9/Mines | Discovered new exit (range 5) 6836 | -9/Mines | Entered Exiles 6886 | -9/Exiles | Met 8R-AWN 6918 | -9/Exiles | Met EX-HEX 7040 | -9/Exiles | Met EX-DEC 7087 | -9/Exiles | Visited The Gauntlet 7470 | -9/Exiles | Met EX-BIN 7498 | -9/Exiles | Aligned with FarCom system 7500 | -9/Exiles | Given EX-Vault access code 7546 | -9/Exiles | Opened EX-Vault 7562 | -9/Exiles | Found Trap Reconfigurator 7596 | -9/Exiles | Found 0b10 Alert Chip 7646 | -9/Exiles | Warned to stay clear of 0b10 Research branches 7768 | -9/Exiles | Discovered new exit (range 14) 7924 | -9/Exiles | Left Exiles lab with Trap Reconfigurator 7924 | -9/Exiles | Entered Mines 8103 | -8/Mines | Discovered new exit (range 5) 8147 | -8/Mines | Discovered new exit (range 10) 8187 | -8/Mines | Entered Materials 8187 | -8/Materials | Evolved 2 slots: Propulsion x1, Utility x1 8966 | -8/Materials | Discovered new exit (range 10) 9467 | -8/Materials | Identified exit to Garrison 9467 | -8/Materials | Entered Garrison 9593 | -8/Garrison | Triggered checkpoint 9659 | -8/Garrison | Triggered checkpoint 9728 | -8/Garrison | Triggered checkpoint 9794 | -8/Garrison | Discovered new exit (range 12) 9990 | -8/Garrison | Discovered new exit (range 15) 10147 | -8/Garrison | Discovered new exit (range 13) 10179 | -8/Garrison | Installed Relay Interface Framework 10240 | -8/Garrison | Triggered checkpoint 10375 | -8/Garrison | Garrison Relay disabled 10552 | -8/Garrison | Triggered checkpoint 10585 | -8/Garrison | Garrison Relay disabled 10848 | -8/Garrison | Garrison Relay disabled 10886 | -8/Garrison | Triggered checkpoint 10955 | -8/Garrison | Triggered checkpoint 10998 | -8/Garrison | Triggered checkpoint 11172 | -8/Garrison | Build established: Bothacker-Mutant 11843 | -8/Garrison | Build established: Commander-Mutant 12119 | -8/Garrison | Entered Factory 12119 | -7/Factory | Accompanied by 9 allies 12119 | -7/Factory | Evolved 2 slots: Utility x2 12790 | -7/Factory | Fabricated Hcp. Storage Unit (x1) 12843 | -7/Factory | Fabricated Hcp. Storage Unit (x1) 12897 | -7/Factory | Fabricated Hcp. Storage Unit (x1) 12920 | -7/Factory | Build established: Hauler-Mutant 13126 | -7/Factory | Identified exit to Garrison 13142 | -7/Factory | Entered Garrison 13142 | -7/Garrison | Accompanied by 3 allies 13170 | -7/Garrison | Triggered checkpoint 13183 | -7/Garrison | Garrison Relay disabled 13266 | -7/Garrison | Triggered checkpoint 13374 | -7/Garrison | Triggered checkpoint 13376 | -7/Garrison | Triggered checkpoint 13413 | -7/Garrison | Discovered new exit (range 10) 13546 | -7/Garrison | Discovered new exit (range 10) 13565 | -7/Garrison | Expanded RIF knowledge: Structural Interface 13740 | -7/Garrison | Triggered checkpoint 13780 | -7/Garrison | Garrison Relay disabled 13916 | -7/Garrison | Triggered checkpoint 13956 | -7/Garrison | Garrison Relay disabled 14268 | -7/Garrison | Triggered checkpoint 14283 | -7/Garrison | Build established: Bothacker-Mutant 14328 | -7/Garrison | Garrison Relay disabled 14481 | -7/Garrison | Discovered new exit (range 13) 15057 | -7/Garrison | Entered Factory 15057 | -7/Factory | Accompanied by 2 allies 15535 | -7/Factory | Identified exit to Garrison 15535 | -7/Factory | Entered Garrison 15535 | -7/Garrison | Accompanied by 4 allies 15578 | -7/Garrison | Triggered checkpoint 15610 | -7/Garrison | Garrison Relay disabled 15744 | -7/Garrison | Triggered checkpoint 15750 | -7/Garrison | Triggered checkpoint 15753 | -7/Garrison | Triggered checkpoint 15808 | -7/Garrison | Triggered checkpoint 15961 | -7/Garrison | Garrison Relay disabled 15980 | -7/Garrison | Discovered new exit (range 8) 16048 | -7/Garrison | Triggered checkpoint 16204 | -7/Garrison | Discovered new exit (range 10) 16546 | -7/Garrison | Triggered checkpoint 16617 | -7/Garrison | Garrison Relay disabled 16763 | -7/Garrison | Triggered checkpoint 16797 | -7/Garrison | Garrison Relay disabled 16859 | -7/Garrison | Discovered new exit (range 15) 16893 | -7/Garrison | Expanded RIF knowledge: Coupler Efficiency 17302 | -7/Garrison | Entered Factory 17302 | -6/Factory | Accompanied by 3 allies 17302 | -6/Factory | Evolved 2 slots: Utility x2 17665 | -6/Factory | Discovered new exit (range 12) 17680 | -6/Factory | Discovered new exit (range 89) 18074 | -6/Factory | Garrison activated, responded to threat 18310 | -6/Factory | Garrison activated, responded to threat 19322 | -6/Factory | Entered Lower Caves 19322 | -6/Lower Caves | Accompanied by 4 allies 19561 | -6/Lower Caves | A Commander dispatched an escort 19591 | -6/Lower Caves | Destroyed 8V-ZJU(g) 19606 | -6/Lower Caves | Learned Armory trap positions 19606 | -6/Lower Caves | Learned location of 1 exit from Factory 19606 | -6/Lower Caves | Learned Research emergency access door positions 19606 | -6/Lower Caves | Learned Armory stockpile data 19606 | -6/Lower Caves | Learned Extension security intel 20041 | -6/Lower Caves | Discovered new exit (range 8) 20046 | -6/Lower Caves | Learned location of 1 exit from Factory 20200 | -6/Lower Caves | Entered another Lower Caves area 20200 | -6/Lower Caves | Accompanied by 6 allies 20201 | -6/Lower Caves | Commander's escort returned to base 20201 | -6/Lower Caves | Commander's escort returned to base 20201 | -6/Lower Caves | Commander's escort returned to base 20237 | -6/Lower Caves | Attracted the attention of an 0b10 checkpoint 20280 | -6/Lower Caves | Discovered new exit (range 8) 20583 | -6/Lower Caves | Spotted B-75 Beast 20687 | -6/Lower Caves | Attracted the attention of an 0b10 outpost 20803 | -6/Lower Caves | Lost 3 parts (1p2u) 21294 | -6/Lower Caves | Discovered new exit (range 12) 21327 | -6/Lower Caves | Entered Data Miner 21327 | -6/Data Miner | Accompanied by 5 allies 21327 | -6/Data Miner | Discovered new exit (range 6) 21365 | -6/Data Miner | Met Data Miner 21402 | -6/Data Miner | Learned location of Section 7 (-2) 21402 | -6/Data Miner | Acquired the access code to Warlord's prototype stash 21431 | -6/Data Miner | Received God Mode back door access code from Data Miner 21543 | -6/Data Miner | Interfaced with the Data Conduit 21818 | -6/Data Miner | Entered Proximity Caves 22061 | -5/Proximity Caves | Learned 8 Factory zone layouts 22305 | -5/Proximity Caves | Discovered new exit (range 15) 22375 | -5/Proximity Caves | Entered Factory 22375 | -5/Factory | Evolved 2 slots: Power x1, Utility x1 22376 | -5/Factory | Identified exit to Upper Caves 22377 | -5/Factory | Identified exit to Factory 22378 | -5/Factory | Loaded intel: 255 machine locations 23383 | -5/Factory | Discovered new exit (range 6) 23394 | -5/Factory | Entered Extension 23394 | -5/Extension | Accompanied by 2 allies 23395 | -5/Extension | Loaded intel: 32 machine locations 23652 | -5/Extension | Rescued a captive Derelict 23654 | -5/Extension | Rescued a captive Derelict 23752 | -5/Extension | System corruption reached 10% 23781 | -5/Extension | Rescued a captive Derelict 23782 | -5/Extension | Rescued a captive Derelict 24176 | -5/Extension | Spotted B-75 Beast 24192 | -5/Extension | Destroyed B-75 Beast 24216 | -5/Extension | Spotted B-75 Beast 24336 | -5/Extension | Destroyed B-75 Beast 24339 | -5/Extension | Lost 19 parts (3p2n6u8w) 24597 | -5/Extension | Lost 4 parts (1n1u2w) 24819 | -5/Extension | Rescued A7 24858 | -5/Extension | Rescued a captive Derelict 25427 | -5/Extension | Discovered exit to Factory (range 10) 25429 | -5/Extension | Discovered new exit (range 6) 25480 | -5/Extension | Build established: Commander-Mutant 25483 | -5/Extension | Entered Cetus 25483 | -5/Cetus | Accompanied by 10 allies (A7) 25484 | -5/Cetus | Loaded intel: 24 machine locations 25488 | -5/Cetus | Acquired a Cetus Manufacturing Module code from A7 25510 | -5/Cetus | Spotted Cetus Guard 25510 | -5/Cetus | Spotted Cetus Guard 25512 | -5/Cetus | Spotted Cetus Guard 25513 | -5/Cetus | Spotted Cetus Guard 25520 | -5/Cetus | Allies destroyed Cetus Guard 25528 | -5/Cetus | Allies destroyed Cetus Guard 25529 | -5/Cetus | Allies destroyed Cetus Guard 25534 | -5/Cetus | Allies destroyed Cetus Guard 25659 | -5/Cetus | Started Cetus Manufacturing Module 25683 | -5/Cetus | Escorted A7 to Cetus Mainframe 25684 | -5/Cetus | Manufactured an Enhanced Grunt 25709 | -5/Cetus | Manufactured an Enhanced Grunt 25734 | -5/Cetus | Manufactured an Enhanced Grunt 25759 | -5/Cetus | Manufactured an Enhanced Grunt 25784 | -5/Cetus | Manufactured an Enhanced Grunt 25815 | -5/Cetus | Build established: Hauler-Mutant 25844 | -5/Cetus | Discovered new exit (range 15) 25885 | -5/Cetus | Found Prototype Device 25885 | -5/Cetus | Identified Exp. Thermal Shield 25912 | -5/Cetus | Entered Archives 25912 | -5/Archives | Accompanied by 6 allies (A7) 25913 | -5/Archives | Loaded intel: 8 machine locations 25917 | -5/Archives | Received a hacking code to weaken MAIN.C 25978 | -5/Archives | Discovered exit to Factory (range 15) 26006 | -5/Archives | Discovered new exit (range 15) 26117 | -5/Archives | Discovered new exit (range 16) 26309 | -5/Archives | Unable to access archive contents 26330 | -5/Archives | Unable to access archive contents 27636 | -5/Archives | Entered Hub_04(d) 27636 | -5/Hub_04(d) | Accompanied by 5 allies 27637 | -5/Hub_04(d) | Loaded intel: 77 machine locations 28077 | -5/Hub_04(d) | Discovered exit to Factory (range 3) 28248 | -5/Hub_04(d) | Build established: Scavenger-Mutant 28566 | -5/Hub_04(d) | Intercept squad dispatched 28570 | -5/Hub_04(d) | Spotted Tracker 28584 | -5/Hub_04(d) | Spotted Combat Programmer 28589 | -5/Hub_04(d) | Destroyed Tracker 28609 | -5/Hub_04(d) | Destroyed Combat Programmer 28679 | -5/Hub_04(d) | Core integrity fell below 50% 28808 | -5/Hub_04(d) | Network Hub disabled 28832 | -5/Hub_04(d) | Entered Factory 28832 | -4/Factory | Evolved 2 slots: Utility x1, Weapon x1 28833 | -4/Factory | Loaded intel: 244 machine locations 29156 | -4/Factory | Discovered new exit (range 13) 29303 | -4/Factory | Lost 13 parts (2p2n7u2w) 29673 | -4/Factory | P-70 Sage assimilated allied Y-72 Warden 29738 | -4/Factory | Discovered new exit (range 10) 29741 | -4/Factory | Destroyed 7 combat bots 29746 | -4/Factory | Lost 6 parts (2p1n1u2w) 29834 | -4/Factory | Entered Armory 29835 | -4/Armory | Loaded intel: 40 trap records 29837 | -4/Armory | Loaded intel: 75 machine locations 29888 | -4/Armory | Fabricated Hcp. Storage Unit (x1) 29913 | -4/Armory | Fabricated Hcp. Storage Unit (x1) 30001 | -4/Armory | Fabricated P-70 Sage (x2) 30692 | -4/Armory | Sage 7a assimilated hostile H-77 Assassin 30974 | -4/Armory | Fabricated G-67 Veteran (x3) 31020 | -4/Armory | Fabricated G-67 Veteran (x3) 31066 | -4/Armory | Fabricated G-67 Veteran (x3) 31104 | -4/Armory | Fabricated Exp. Terrain Scanner (x1) 31145 | -4/Armory | Discovered new exit (range 24) 31156 | -4/Armory | Discovered new exit (range 30) 31385 | -4/Armory | Entered Lab 31385 | -4/Lab | Accompanied by 5 allies 31385 | -4/Lab | Discovered new exit (range 9) 31412 | -4/Lab | Hidden lab's door opened automatically 31412 | -4/Lab | Sensor layout match revealed 31413 | -4/Lab | Gained access to the hidden lab's interior 31429 | -4/Lab | Detected by scanners 31438 | -4/Lab | Confronted by A5 31441 | -4/Lab | Disabled Active System Cloaker 31447 | -4/Lab | MAIN.C forces arrive to investigate 31456 | -4/Lab | Allies destroyed A5 31549 | -4/Lab | Found Prototype Special Weapon 31549 | -4/Lab | Identified Gui. Remote Datajack 31660 | -4/Lab | Decrypted terminal 31660 | -4/Lab | Acquired modification code for an L2 power cell 31787 | -4/Lab | Found Prototype Energy Gun 31787 | -4/Lab | Identified Tachyon Dispersion Ray 31794 | -4/Lab | Found Prototype Energy Cannon 31794 | -4/Lab | Identified Potential Cannon 31802 | -4/Lab | Found Prototype Protection 31802 | -4/Lab | Identified Exp. Powered Armor 31808 | -4/Lab | Found Deep Network Scanner 31880 | -4/Lab | Build established: Hacker-Mutant 31972 | -4/Lab | Found Alien Artifact 31980 | -4/Lab | Found Alien Artifact 31994 | -4/Lab | Found Alien Artifact 32051 | -4/Lab | Decrypted terminal 32063 | -4/Lab | Entered Research 32063 | -3/Research | Accompanied by 2 allies 32063 | -3/Research | Evolved 2 slots: Propulsion x1, Utility x1 32065 | -3/Research | Loaded intel: 119 machine locations 32419 | -3/Research | Garrison activated, responded to threat 32563 | -3/Research | First assault squad dispatched 32592 | -3/Research | Discovered new exit (range 9) 32829 | -3/Research | Identified exit to Research 32838 | -3/Research | Intercept squad dispatched 32859 | -3/Research | Spotted Tracker 32867 | -3/Research | Destroyed Tracker 32881 | -3/Research | Spotted Combat Programmer 32888 | -3/Research | Destroyed Combat Programmer 32922 | -3/Research | Found Exp. Phase Shifter 33246 | -3/Research | Entered another Research area 33246 | -2/Research | Accompanied by 1 ally 33246 | -2/Research | Evolved 2 slots: Utility x2 33247 | -2/Research | Loaded intel: 120 machine locations 33344 | -2/Research | Found Antimissile System 33620 | -2/Research | Fabricated Combat Drone Bay (x1) 33659 | -2/Research | Build established: Wizard-Skirmisher 33732 | -2/Research | Fabricated Combat Drone Bay (x1) 33794 | -2/Research | Identified exit to Access 33840 | -2/Research | Fabricated Imp. Powered Armor (x1) 33866 | -2/Research | Fabricated Imp. Powered Armor (x1) 33900 | -2/Research | Fabricated Adv. Heavy Siege Treads (x2) 33937 | -2/Research | Local fabrication network quarantined 34082 | -2/Research | Intercept squad dispatched 34113 | -2/Research | Spotted Tracker 34113 | -2/Research | Spotted Tracker 34120 | -2/Research | Destroyed Tracker 34120 | -2/Research | Destroyed Tracker 34143 | -2/Research | Found Exp. Phase Shifter 34215 | -2/Research | Spotted Combat Programmer 34227 | -2/Research | Destroyed Combat Programmer 34249 | -2/Research | System corruption reached 10% 34254 | -2/Research | Spotted Combat Programmer 34271 | -2/Research | Destroyed Combat Programmer 34385 | -2/Research | Build established: Hacker-Skirmisher 34445 | -2/Research | Found Exp. Thermal Shield 34479 | -2/Research | Entered Access 34479 | -1/Access | Evolved 2 slots: Utility x2 34480 | -1/Access | Loaded intel: 89 machine locations 34931 | -1/Access | Identified Transdimensional Reconstructor 34931 | -1/Access | Identified Core Expander 34931 | -1/Access | Identified Integrated Reactor 35021 | -1/Access | Installed Core Expander, added new Utility slot 35194 | -1/Access | Build established: Hacker-Mutant 35206 | -1/Access | Installed Integrated Reactor, increased core energy generation (+10) 35229 | -1/Access | First assault squad dispatched 35322 | -1/Access | Destroyed 9 combat bots 35380 | -1/Access | Intercept squad dispatched 35404 | -1/Access | Spotted Tracker 35405 | -1/Access | Destroyed Tracker 35405 | -1/Access | Spotted Tracker 35410 | -1/Access | Destroyed Tracker 35414 | -1/Access | Spotted Combat Programmer 35420 | -1/Access | System corruption reached 10% 35431 | -1/Access | Destroyed Combat Programmer 35447 | -1/Access | Found Exp. Phase Shifter 35466 | -1/Access | Found Exp. Targeting Computer 35493 | -1/Access | Identified exit to Garrison 35493 | -1/Access | Entered Garrison 35494 | -1/Garrison | Loaded intel: 17 machine locations 35504 | -1/Garrison | Expanded RIF knowledge: Autoassimilate 35540 | -1/Garrison | Build established: Hacker-Tank 35590 | -1/Garrison | Triggered checkpoint 35596 | -1/Garrison | Destroyed 9 combat bots 35613 | -1/Garrison | Garrison Relay disabled 35895 | -1/Garrison | Triggered checkpoint 36041 | -1/Garrison | Spotted B-99 Colossus 36132 | -1/Garrison | Destroyed B-99 Colossus 36177 | -1/Garrison | Found Prototype Ballistic Gun 36234 | -1/Garrison | Triggered checkpoint 36326 | -1/Garrison | Triggered checkpoint 36350 | -1/Garrison | Garrison Relay disabled 36428 | -1/Garrison | Discovered new exit (range 12) 36573 | -1/Garrison | Triggered checkpoint 36611 | -1/Garrison | Triggered checkpoint 36654 | -1/Garrison | Found Prototype Ballistic Gun 36654 | -1/Garrison | Identified Multirail (x2) 36801 | -1/Garrison | Discovered new exit (range 8) 36820 | -1/Garrison | Triggered checkpoint 36883 | -1/Garrison | Garrison Relay disabled 37068 | -1/Garrison | Triggered checkpoint 37102 | -1/Garrison | Garrison Relay disabled 37217 | -1/Garrison | Build established: Botlord-Mutant 37330 | -1/Garrison | Entered Access 37330 | -1/Access | Accompanied by 5 allies 37331 | -1/Access | Loaded intel: 119 machine locations 37628 | -1/Access | First assault squad dispatched 37758 | -1/Access | Crushed by falling debris 37852 | -1/Access | Found Spectral Analyzer 37855 | -1/Access | Found Exp. Targeting Computer 38045 | -1/Access | Intercept squad dispatched 38064 | -1/Access | Spotted Tracker 38064 | -1/Access | Spotted Tracker 38073 | -1/Access | Destroyed Tracker 38080 | -1/Access | Destroyed Tracker 38133 | -1/Access | Found Exp. Phase Shifter 38135 | -1/Access | Destroyed 7 combat bots 38138 | -1/Access | Spotted Combat Programmer 38143 | -1/Access | Destroyed Combat Programmer 38167 | -1/Access | Spotted Combat Programmer 38183 | -1/Access | Destroyed Combat Programmer 38189 | -1/Access | Build established: Scavenger-Gunner 38200 | -1/Access | System corruption reached 30% 38697 | -1/Access | Discovered new exit (range 9) 38712 | -1/Access | Entered Command 38713 | -1/Command | Loaded intel: 61 machine locations 39090 | -1/Command | Found Fusion Bomb Launcher 39507 | -1/Command | P-80 Master assimilated allied Warden 10d 39885 | -1/Command | Spotted Combat Programmer 39885 | -1/Command | Spotted Combat Programmer 39891 | -1/Command | Destroyed Combat Programmer 39899 | -1/Command | Destroyed Combat Programmer 39900 | -1/Command | Spotted M Guard 39902 | -1/Command | Spotted M Guard 39909 | -1/Command | Destroyed M Guard 39921 | -1/Command | Destroyed M Guard 39921 | -1/Command | All MAIN.C guards destroyed 39928 | -1/Command | Found Prototype Device 39928 | -1/Command | Identified AEGIS Remote Shield 39942 | -1/Command | Found Zero-point Reactor 39945 | -1/Command | Found Thermal Barrier 39946 | -1/Command | Lost 3 parts (2u1w) 39950 | -1/Command | Found Prototype Protection 39950 | -1/Command | Identified Hvy. Regenerative Plating 39957 | -1/Command | Found Zero-point Reactor 39962 | -1/Command | Found Zero-point Reactor 39971 | -1/Command | Found Prototype Launcher 39972 | -1/Command | Identified Ragnarok Missile Launcher 40022 | -1/Command | Found Prototype Energy Cannon 40022 | -1/Command | Identified Cld. Nova Cannon 40148 | -1/Command | Met MAIN.C 40171 | -1/Command | MAIN.C activated Command garrisons 40207 | -1/Command | 0b10 Conduit disabled 40210 | -1/Command | Destroyed MAIN.C Shell 40260 | -1/Command | Destroyed 15 combat bots 40301 | -1/Command | Core integrity fell below 50% 40311 | -1/Command | Core integrity fell below 20% 40316 | -1/Command | Destroyed by MAIN.C with Improved Heavy Machine Gun Last Messages --------------- 40311_ Cld. Nova Cannon temporarily disabled. 40311_ Penetrated by Slug. 40312_ Power failure, Rnf. Quantum Reactor shutdown. 40312_ Penetrated by Slug. 40312_ System corrupted: Ragnarok Missile Launcher targeting data glitched. 40312_ Ragnarok Missile intercepted. 40313_ Penetrated by Slug. 40313_ Hcp. Storage Unit destroyed. 40313_ Zero-point Reactor destroyed. 40313_ Cld. Nova Cannon destroyed. 40313_ Knocked back. 40314_ Penetrated by Slug. 40314_ Rnf. Quantum Reactor destroyed. 40314_ Penetrated by Slug. 40315_ System corrupted: Ragnarok Missile Launcher targeting data glitched. 40315_ G-73 Enforcer destroyed. 40315_ Penetrated by Slug. 40316_ Ragnarok Missile Launcher destroyed. Map ----- +----------------------------------------------------+ | ?????????????????????????????????????????????????? | | ?????????????????????????????????????????????????? | | ?????????????????????????????????????????????????? | | ?????????????????????????????????????????????????? | | ?????????????????????????????????????????????????? | | ?????????????????????????????????????????????????? | | ?????????????????????????????????????????????????? | | ?????????????????????????????????????????????????? | | ??T??????????????????????????????????????????????? | | ""???????????????????????????????????????????????? | | ""???????????????????????????????????????????????? | | ?????????????????????????????????????????????????? | | ?????????????????????????????????????????????????? | | ?????????????????????????????????????????????????? | | ?????????????????????????????????????????????????? | | ?????????????????????????????????????????????????? | | ?????????????????????????????????????????????????? | | ?????????????????????????????????????????????????? | | ?????????????????????????????????????????????????? | | ????????????????#####??????????????????????????b?? | | ????????????????? ##????????????????????????l?? | | ?????????##########%#"#??????????????????????????? | | """""""? " !#???????????????????????????g | | ""?????? " [ ##????????????????????????d?b | | """""??? " ! [######################?????? | | """"""""" %== @ h #???l?? | | "???"?? " M /%h% h % *= #?????? | | ""??"""" = = h p p%! #?????? | | ""??""""" ################## #?????p | | ?"??""""" # ????????????????# #?????? | | ?"????? ###???????????????# ##?#b## | | ?"????? " #?????????????????# T#?#l | | """"""""" % #?????????????????#+s+#### Ws | | ""????? " #?????????????????# | | ???????? """"" #?????????????????# s l p | | ???????? ?" " " #?????????????????# d l | | ??????????"?" " #?????????????????# | | ????????"?"?"?"""" " ??????????????????# g | | ??????"""?"?"???"""" ??????????????????# ### | | ??????"???"?"????" ? ??????????????????######?# ds | | ???""""""""""????"?? ?????????????????????????#### | | ???"?"""??"??""""""""??????????????????????????e?? | | ?????"""??"??"???"???????????????????????????????? | | ?????????????????????????????????????????????????s | | ?????????????????????????????????????????????????? | | ?????????????????????????????????????????????????? | | ?????????????????????????????????????????????????? | | ?????????????????????????????????????????????????? | | ?????????????????????????????????????????????????? | | ?????????????????????????????????????????????????? | +----------------------------------------------------+ Best States ------------- Heat Dissipation 109 Energy Generation 82 Energy Capacity 2090 Matter Stores 450 Matter Capacity 450 Sight Range 24 Terrain Scan Range 30 Terrain Scan Density 210 Jamming Range 12 Power Amplification 40 Armor Coverage 1600 Resistance: KI 30 Resistance: TH 50 Power Shielding 90 Utility Shielding 66 Point Defense Rating 320 Weapon Cycling 25 Phase Shifting 20 Evasion (%) 60 Targeting Accuracy 24 Target Analysis 8 Recoil Reduction 4 Matter Filtering 30 Particle Charging 25 Offensive Hacking 49 Defensive Hacking 26 Relay Coupler Types 108 Relay Coupler Value 4 Item Schematics ----------------- Hcp. Storage Unit | -10/Mines | Hacked Plasma Cutter | -9/Materials | Scanalyzed Gui. EMP Blaster | -6/Factory | Scanalyzed Lyr. Medium Armor Plating | -6/Factory | Scanalyzed Plasma Sword | -6/Data Miner | Free Cloaking Device | -6/Data Miner | Free Exp. ECM Suite | -6/Data Miner | Free Exp. Terrain Scan Processor | -6/Data Miner | Free Exp. Sensor Array | -6/Data Miner | Free Cmb. Gravmag System | -6/Data Miner | Free Exp. Flexi-carbon Leg | -6/Data Miner | Free Lgt. Regenerative Plating | -6/Data Miner | Free Combat Drone Bay | -6/Data Miner | Free Imp. Hacking Suite | -5/Factory | Hacked Imp. System Shield | -5/Cetus | Hacked Hvy. Disruptor Cannon | -5/Hub_04(d) | Hacked Exp. Terrain Scanner | -4/Armory | Hacked Lyr. Heavy Armor Plating | -4/Armory | Hacked Imp. Powered Armor | -4/Armory | Hacked Cmb. Linear Gravjet | -4/Armory | Hacked Adv. Heavy Siege Treads | -2/Research | Hacked Robot Schematics ------------------ I-25 Savior | -9/Materials | Hacked O-16 Technician | -9/Materials | Hacked I-36 Angel | -6/Data Miner | Free P-70 Sage | -6/Data Miner | Free H-66 Slayer | -6/Data Miner | Free L-41 Fighter | -6/Data Miner | Free G-67 Veteran | -6/Data Miner | Free G-50 Soldier | -6/Data Miner | Free S-27 Virus | -6/Data Miner | Free B-60 Warrior | -5/Extension | Hacked Fabricated ------------ Hcp. Storage Unit | x1 | -7/Factory Hcp. Storage Unit | x1 | -7/Factory Hcp. Storage Unit | x1 | -7/Factory Hcp. Storage Unit | x1 | -4/Armory Hcp. Storage Unit | x1 | -4/Armory P-70 Sage | x2 | -4/Armory G-67 Veteran | x3 | -4/Armory G-67 Veteran | x3 | -4/Armory G-67 Veteran | x3 | -4/Armory Exp. Terrain Scanner | x1 | -4/Armory Combat Drone Bay | x1 | -2/Research Combat Drone Bay | x1 | -2/Research Imp. Powered Armor | x1 | -2/Research Imp. Powered Armor | x1 | -2/Research Adv. Heavy Siege Treads | x2 | -2/Research Alien Tech Used ----------------- Core Expander Integrated Reactor Achievements -------------- Decrypted! Challenges ------------ None Game ------ Seed ReclamationXenonShielding Manual? 0 Play Time 05:43:19 Cumulative 512.6 hours Start 2020.09.19 @ 23:13:25 End 2020.09.22 @ 01:11:00 Sessions 7 Manual Loads 0 Difficulty Rogue Special Mode None Game No. 325 Rogue 325 Adventurer 0 Explorer 0 Win Type - Total 6 Types 4/0/1/0/1/0/0/0/0 Lore% 87 Gallery% 88 Achievement% 69 Wizard Run 0 Options --------- ASCII 0 Keyboard 0 Movement Mouse Keybinds 1 Fullscreen 2 Font 24/Smallcaps Map View 68x50 Tactical HUD 1 Map Filters NONE Filters NONE Steam 1 RUN: 8cff7fd1-cdfb-49ac-bba8-93dd20d595d3